{"text_format":"3","workbook":"xlsx","n_sheets":16,"sheets":["Copyright","Empieza aquí","Introducción","Aspectos técnicos herramienta","Vencimientos","Material relacionado","Datos","Anexo","Anexo 2","F350","Listado completo de archivos","Instructivo","Tablas","1","2","Formulas"],"not_rendered":{"images":29,"macros":1,"external_links":1,"defined_names":16,"comments":4},"read":"whole","date_system":"1900"}

{"sheet":"Copyright","index":0,"n_rows":16,"n_cols":2,"rows_kept":16,"merged":[[1,4,1,7],[3,1,3,7],[4,1,4,7],[5,1,5,7],[6,1,6,7],[7,1,7,7],[9,2,9,6],[10,1,10,7],[11,1,11,7],[15,1,16,9]]}
{"$rows_empty":15}
[null,"https://actualicese.com/plantilla-en-excel-para-diligenciar-el-formulario-350-de-retencion-en-la-fuente-en-2021/"]

{"sheet":"Empieza aquí","index":1,"n_rows":1,"n_cols":1,"rows_kept":1,"merged":[[9,1,9,9],[11,1,11,9],[12,1,12,9],[14,1,14,9],[15,1,15,9],[21,1,21,5],[21,7,21,9],[23,1,23,5],[23,7,24,9],[24,1,24,5],[25,1,26,5],[25,7,27,9],[27,1,28,5],[28,7,28,9],[29,1,30,5],[29,7,29,9],[30,7,30,9]]}
[" "]

{"sheet":"Introducción","index":2,"n_rows":20,"n_cols":1,"rows_kept":20,"merged":[[6,0,6,7],[10,0,10,7],[11,0,11,7],[12,0,12,7],[13,0,13,7],[15,0,15,7],[17,0,17,7],[19,0,19,7],[21,0,21,7],[23,0,23,7],[25,0,25,7],[27,0,27,7],[28,0,28,7],[30,0,30,7],[32,0,32,7],[33,0,33,7],[34,0,34,7],[35,0,35,7]]}
[]
[]
[]
[]
[]
[]
["Plantilla en Excel para diligenciar el formulario 350 de retención en la fuente en 2021"]
[]
["Fecha de elaboración: febrero 23 de 2021"]
[]
["El 24 de noviembre de 2020 se dio a conocer por parte de la Dian un proyecto de resolución"]
["con el cual se pretendía prescribir el formulario 350 para 2021, finalmente, dicho organismo expidió la Resolución 000009 el pasado 5 de febrero de 2021, sin incluir el anexo del formulario; no obstante, la estructura del formulario cargada en la plataforma Muisca correspondía a la expuesta en el proyecto de norma. "]
[]
["Posteriormente, el 17 de febrero de 2021 se dio a conocer el formulario 350 en la zona de formularios e instructivos de la Dian. En este formulario oficial se puede percibir cómo se eliminan los renglones 84 y 85 que se utilizaron para reportar los valores de “Retenciones impuesto solidario COVID-19” y “Aporte solidario por el COVID-19”, generando un cambio en la distribución de los renglones a partir de estos. Dicha información con relación al COVID-19 será reportada por el año gravable 2020 en el formulario 220 (ingresa aquí para conocer nuestra plantilla sobre este formulario)."]
[]
["En esta plantilla avanzada del formulario 350 de retención en la fuente hemos formulado, en Excel, las casillas correspondientes al formulario en mención, conforme a la información expuesta en la Resolución 000009 del año en curso. También se incluye la estructura de la hoja “Anexo 2” (que se debe elaborar junto con dicho formulario cuando se hayan practicado retenciones a título de renta a terceros domiciliados en el exterior) y se adjunta un modelo de la forma en la que podrían diligenciarse los anexos que cada mes deberían quedar en los archivos de las empresas, acompañando a cada formulario 350 que se vaya presentando."]
[]
["Adicionalmente, en la ventana desplegable de cada botón de la hoja “Anexo” hemos dispuesto todas aquellas instrucciones que se encuentran contempladas en dicha resolución y algunos comentarios adicionales con la referencia normativa que se deberá atender al momento de diligenciar el formulario."]
[]
["Por último, esta herramienta avanzada contiene una hoja de material relacionado con videos grabados por Diego Guevara Madrid (líder de investigación tributaria), análisis, casos de estudio, conceptos tributarios y guías elaboradas por el equipo editorial de Actualícese."]

{"sheet":"Aspectos técnicos herramienta","index":3,"n_rows":82,"n_cols":5,"rows_kept":82,"merged":[[6,0,6,7],[8,0,8,7],[9,0,9,3],[11,0,11,7],[13,0,13,7],[14,0,14,7],[15,0,15,7],[16,0,16,7],[77,0,77,7],[79,0,79,7],[81,0,81,7]]}
[]
[]
[]
[]
[]
[]
["Aspectos técnicos herramienta"]
[]
["En la hoja “Vencimientos” ubicarás el calendario tributario expuesto en el artículo 1.6.1.13.2.33 "]
["del Decreto 1625 de 2016, modificado por el",{"$nulls":3},"artículo 1 del Decreto 1680 de 2020."]
[]
["Si desees conocer el material relacionado que debes estudiar para ampliar tu conocimiento sobre cada ítem del formulario, ingresa a la hoja “Material relacionado”. En dicho material ubicamos enlaces de videos grabados por Diego Guevara Madrid (líder de investigación tributaria), análisis, casos de estudio, conceptos tributarios y guías elaboradas por el equipo editorial de Actualícese. "]
[]
["Podrás ingresar los datos iniciales del declarante y signatario, diligenciando los campos de la hoja “Datos”."]
["En la hoja “Anexo” encontrarás diferentes comentarios emergentes y los campos requeridos para diligenciar la información que irá a cada casilla del formulario. Ten en cuenta que cada casilla expuesta en esta hoja es un botón y que al presionar un clic sobre este permitirá visualizar una ventana emergente en la que alojamos las instrucciones y aspectos clave para diligenciar cada casilla del formulario 350. Aquí encontrarás en cada ventana emergente, en la parte superior el comentario del instructivo y en la parte inferior el comentario de Actualícese."]
{"$rows_empty":62}
["En la hoja “Anexo 2” podrás ubicar el anexo que se debe elaborar con dicho formulario cuando se hayan practicado retenciones a título de renta a terceros domiciliados en el exterior."]
[]
["En la hoja “F350” se encuentran todas las casillas del formulario 350 debidamente formuladas y comentarios emergentes con información relevante."]
[]
["Por último, en la hoja “Instructivo” compartimos las instrucciones del formulario 350 contempladas en el anexo de la Resolución 000009 de febrero 5 de 2021."]

{"sheet":"Vencimientos","index":4,"n_rows":27,"n_cols":13,"rows_kept":27,"merged":[[8,0,8,12],[9,0,9,12],[10,0,10,12],[11,0,11,12],[12,0,14,0],[13,1,13,12],[26,0,27,12]]}
{"$rows_empty":8}
["Retención en la fuente y autorretención del impuesto de renta y complementarios"]
["Declaración y pago mensual 2021"]
["(Artículo 1.6.1.13.2.33 del Decreto 1625 de 2016, modificado por el artículo 1 del Decreto 1680 de 2020)"]
[]
["Último dígito del NIT","Ene","Feb","Mar","Abr","May","Jun","Jul","Ago","Sep","Oct","Nov","Dic"]
[null,"Plazo máximo para consignar en 2021"]
[null,"Feb","Mar","Abr","May","Jun","Jul","Ago","Sep","Oct","Nov","Dic","2022-01-01"]
[1,9,9,12,10,9,8,10,8,7,9,10,12]
[2,10,10,13,11,10,9,11,9,8,10,13,13]
[3,11,11,14,12,11,12,12,10,11,11,14,14]
[4,12,12,15,13,15,13,13,13,12,12,15,17]
[5,15,15,16,14,16,14,17,14,13,16,16,18]
[6,16,16,19,18,17,15,18,15,14,17,17,19]
[7,17,17,20,19,18,16,19,16,15,18,20,20]
[8,18,18,21,20,21,19,20,17,19,19,21,21]
[9,19,19,22,21,22,21,23,20,20,22,22,24]
[0,22,23,23,24,23,22,24,21,21,23,23,25]
[]
["*Estos plazos aplican para la declaración y pago de retención en la fuente y/o autorretención del impuesto de renta y complementario, impuesto de timbre, IVA y contribución por laudos arbitrales."]

{"sheet":"Material relacionado","index":5,"n_rows":63,"n_cols":1,"rows_kept":63,"merged":[[5,0,7,7],[9,0,9,7],[10,0,10,7],[11,0,11,7],[13,0,13,7],[14,0,14,7],[16,0,16,7],[17,0,17,7],[19,0,19,7],[20,0,20,7],[22,0,22,7],[23,0,23,7],[25,0,25,7],[26,0,26,7],[28,0,28,7],[29,0,29,7],[31,0,31,7],[32,0,32,7],[34,0,34,7],[35,0,35,7],[37,0,37,7],[38,0,38,7],[40,0,40,7],[41,0,41,7],[43,0,43,7],[44,0,44,7],[46,0,46,7],[47,0,47,7],[49,0,49,7],[50,0,50,7],[52,0,52,7],[53,0,53,7],[55,0,55,7],[56,0,56,7],[58,0,58,7],[59,0,59,7],[61,0,61,7],[62,0,62,7]]}
[]
[]
[]
[]
[]
["Material relacionado"]
[]
[]
["Fecha de elaboración: febrero 23 de 2021"]
[]
["[Análisis] Nuevo formulario 350 para retenciones en la fuente de 2021 fue prescrito por la Dian"]
["Mediante su Resolución 000009 de febrero 5 de 2021, la Dian prescribió el formulario 350, empleado por primera vez para declarar las retenciones y autorretenciones de enero de 2021.\n\nEn el nuevo formulario se eliminaron los renglones para reportar retenciones a título del impuesto solidario COVID-19."]
[]
["[Formatos] Formularios e instructivos de la Dian"]
["El Ministerio de Hacienda y la Dian, a través de diversas normas, prescriben los formatos y formularios para que los contribuyentes cumplan con sus respectivas obligaciones tributarias.\n\nEn este apartado relacionaremos las normas más relevantes en materia tributaria, utilizadas para la declaración, reporte y pago de diferentes obligaciones. Asimismo, compartimos sus respectivos formularios en PDF y las versiones disponibles a título de guía (por parte de Actualícese) en formato Excel."]
[]
["[Análisis] UVT 2021, valor de la UVT para 2021"]
["Mediante la Resolución 000111 del 11 de diciembre de 2020, la Dian fijó el valor de la unidad de valor tributario –UVT– aplicable para el año gravable 2021. Conoce más información aquí."]
[]
["[Respuestas] Disminución de la tarifa de retención y autorretención en la fuente en el año gravable 2021"]
["En este video, el Dr. Diego Guevara, especialista en temas contables y tributarios, analiza si para el año gravable 2021 disminuirá la tarifa del impuesto de renta de las personas jurídicas del régimen ordinario, y si puede esperarse que también disminuyan las tarifas de retención y autorretención en la fuente."]
[]
["[Análisis] Retención en la fuente a título de renta, timbre e IVA: plazos durante 2021"]
["Los plazos para la presentación de las respectivas declaraciones de retenciones en la fuente (renta, timbre e IVA) se indicaron en el artículo 1.6.1.13.2.33 del Decreto 1625 de 2016, modificado por el artículo 1 del Decreto 1680 de 2020. \nConócelos aquí."]
[]
["[Formato] Tablas de retención en la fuente a título de impuestos nacionales durante el año fiscal 2021"]
["Compartimos nuestra guía avanzada de retención en la fuente a título del impuesto de renta e IVA durante 2021.\n\nEn esta se recopilan los conceptos, cuantías mínimas y tarifas más importantes para practicar retención en la fuente tanto a beneficiarios residentes como a no residentes."]
[]
["[Guía] Tabla de retención en la fuente para el año fiscal 2021"]
["Compartimos las tarifas de retención en la fuente a título de renta para 2021 en compras, servicios, arrendamientos, honorarios y comisiones, entre otros.\n\nEste editorial incluye las tarifas actualizadas con sus respectivas cuantías mínimas en UVT y en pesos (el monto de la UVT para 2021 es de $36.308)."]
[]
["[Análisis] Novedades y formatos de retención en la fuente (procedimientos 1 y 2) para el año gravable 2021"]
["Conoce qué se debe atender durante 2021 para el cálculo de la retención en la fuente a título de rentas de trabajo (laborales y no laborales).\n\nEn este editorial encontrarás la descripción y enlaces de las herramientas que elaboró nuestro líder en investigación tributaria, Diego Guevara Madrid."]
[]
["[Análisis] Personas naturales retenedoras para el año gravable 2021"]
["Las personas naturales comerciantes que en el año 2020 hubiesen poseído un patrimonio o ingresos brutos superiores a 30.000 UVT serán agentes de retención sobre los pagos por conceptos de honorarios, comisiones, arrendamientos, rendimientos financieros y compras para el año 2021. \n\nConoce más ingresando a este editorial."]
[]
["[Análisis] Cuantía mínima de retención en la fuente por servicios para el año 2021"]
["De acuerdo con el valor de la UVT fijado en $36.308 para 2021, la cuantía mínima de retención en la fuente a título del impuesto sobre la renta por concepto de prestación de servicios será de $145.000.\n\nEn este editorial, mencionaremos aspectos relacionados con esta actualización normativa."]
[]
["[Análisis] Tarifa general de reteiva para 2021"]
["De acuerdo con el artículo 437-1 del Estatuto Tributario –ET–, modificado mediante la Ley 2010 de 2019, durante 2021 la tarifa de retención en la fuente del impuesto sobre las ventas podrá ser hasta del 50 % del valor del IVA, según lo determine el Gobierno nacional. \n\nAmplía esta información ingresando a este editorial."]
[]
["[Análisis] Retenciones y autorretenciones en operaciones donde participe alguien del régimen simple"]
["El artículo 911 del ET y el Decreto 1091 de 2020 exoneran de retenciones a título de renta e ICA a los inscritos en el SIMPLE, más no de retención a título del IVA, ganancia ocasional ni de la contribución de laudos arbitrales.\n\nEn pagos a terceros, estos tendrán que practicarse autorretenciones. Conoce más en este editorial."]
[]
["[Respuestas] Autorretención especial a título de renta en las cooperativas según el Decreto 2201 de 2016"]
["Conoce en esta respuesta si las cooperativas cuentan con la exoneración de aportes de nómina del artículo 114-1 del ET y si, de ser así, también quedan obligadas a practicarse las autorretenciones del Decreto 2201 de 2016."]
[]
["[Respuestas] Autorretención especial a título de renta sobre los ingresos obtenidos en el exterior"]
["En esta respuesta, el Dr. Diego Guevara, especialista en temas contables y tributarios, menciona si lo establecido en el Decreto 2201 de diciembre de 2016, sobre la autorretención especial a título de renta, aplica para los ingresos obtenidos en el exterior."]
[]
["[Respuestas] Autorretención especial a título de renta sobre los ingresos recibidos a través del Paef"]
["En este video, el Dr. Diego Guevara, especialista en temas contables y tributarios, explica los efectos fiscales de los ingresos recibidos a través del Programa de Apoyo al Empleo Formal –Paef–."]
[]
["[Respuestas] Autorretención especial a título de renta por los contribuyentes del SIMPLE"]
["En este video, el Dr. Diego Guevara, especialista en temas contables y tributarios, expone si los contribuyentes acogidos al régimen simple deben efectuarse la autorretención en renta reglamentada por el Decreto 2201 de 2016."]
[]
["[Análisis] Personas naturales obligadas a responder como agentes de retención en 2021"]
["Las personas naturales comerciantes deberán medir su patrimonio bruto fiscal a diciembre 31 de 2020 y sus ingresos brutos fiscales de 2020.\n\nSi alguno de tales conceptos supera el tope de 30.000 UVT, deberán actuar durante 2021 como agentes de retención a título de renta en ciertos pagos. \n\nIngresa al editorial para ampliar esta información."]
[]
["[Respuestas] Aplicación de la autorretención en renta por entidades del régimen tributario especial"]
["En este video, el Dr. Diego Guevara, especialista en temas contables y tributarios, expone si las entidades del régimen especial y las entidades no contribuyentes del impuesto de renta deben practicarse la autorretención especial en renta."]

{"sheet":"Datos","index":6,"n_rows":37,"n_cols":13,"rows_kept":37,"merged":[[2,1,3,13],[9,1,9,13],[13,2,13,3],[13,5,13,7],[15,2,15,3],[17,2,17,3],[19,2,19,3],[19,5,19,10],[20,2,20,4],[21,5,21,10],[22,2,23,4],[26,1,26,13],[28,1,28,4],[30,1,30,13],[32,2,32,4],[32,5,32,10],[36,2,36,3]]}
[]
[]
[null,"DATOS INICIALES"]
[]
[]
[{"$nulls":3},"1. Año",null,2021]
[]
[{"$nulls":3},"3. Período"]
[]
[null,"DATOS DEL DECLARANTE"]
[]
[{"$nulls":3},"5. NIT",{"$nulls":3},"6. DV",{"$f":"IF(Formulas!A2=0,0,IF(Formulas!A2=1,1,11-Formulas!A2))","v":0}]
[]
[null,null,"Tipo de agente"]
[]
[null,null," 7. Primer apellido",{"$nulls":4}," 8. Segundo apellido"]
[]
[null,null," 9. Primer nombre",{"$nulls":4}," 10. Otros nombres"]
[]
[null,null,"11. Razón social"]
[]
[null,null,"12. Cód. Direccíon Seccional",null,null,"Nivel Central",{"$nulls":6},{"$f":"IFERROR(VLOOKUP(F22,Tablas!C16:D67,2,FALSE),\"\")","v":"00"}]
[null,null,"Si es una corrección indique"]
[]
[null,null,"25. Código",{"$nulls":4},"26. No. Formulario anterior"]
[]
[null,"DATOS DEL SIGNATARIO"]
[]
[null,"89. No. Identificación signatario",{"$nulls":5},"90. DV",{"$f":"IF(Formulas!A3=0,0,IF(Formulas!A3=1,1,11-Formulas!A3))","v":0}]
[]
[null,"SECCIÓN FIRMAS"]
[]
[null,null,"981. Código representación",{"$nulls":9},{"$f":"IFERROR(IF(F14=\"Persona natural\",VLOOKUP(F33,Tablas!I18:J41,2,FALSE),IF(F14=\"Persona jurídica o sociedad de hecho\",VLOOKUP(F33,Tablas!K18:L38,2,FALSE),\"\")),\"\")","v":""}]
[]
[null,null,"982. Código",{"$nulls":4},"983. No. Tarjeta profesional"]
[]
[null,null,"994. Con salvedades"]

{"sheet":"Anexo","index":7,"n_rows":204,"n_cols":12,"rows_kept":204,"merged":[[2,5,3,6],[4,2,5,2],[4,4,5,4],[4,5,5,5],[4,6,5,6],[4,7,5,7],[4,8,5,8],[4,9,4,10],[4,11,5,11],[7,2,11,2],[7,4,11,4],[7,5,10,5],[13,2,17,2],[13,4,17,4],[13,5,16,5],[19,2,23,2],[19,4,23,4],[19,5,22,5],[25,2,29,2],[25,4,29,4],[25,5,28,5],[31,2,35,2],[31,4,35,4],[31,5,34,5],[37,2,41,2],[37,4,41,4],[37,5,40,5],[43,2,47,2],[43,4,47,4],[43,5,46,5],[49,2,53,2],[49,4,53,4],[49,5,52,5],[55,2,59,2],[55,4,59,4],[55,5,58,5],[61,2,65,2],[61,4,65,4],[61,5,64,5],[67,2,71,2],[67,4,71,4],[67,5,70,5],[73,2,77,2],[73,4,77,4],[73,5,76,5],[79,2,83,2],[79,4,83,4],[79,5,82,5],[85,2,89,2],[85,4,89,4],[85,5,88,5],[91,2,95,2],[91,4,95,4],[91,5,94,5],[97,4,98,5],[99,2,103,2],[99,4,103,4],[99,5,102,5],[105,2,109,2],[105,4,109,4],[105,5,108,5],[111,2,115,2],[111,4,115,4],[111,5,114,5],[117,2,121,2],[117,4,121,4],[117,5,120,5],[123,2,127,2],[123,4,127,4],[123,5,126,5],[129,2,133,2],[129,4,133,4],[129,5,132,5],[135,2,139,2],[135,4,139,4],[135,5,138,5],[141,2,145,2],[141,4,145,4],[141,5,144,5],[148,2,152,2],[148,4,152,4],[148,5,151,5],[154,2,158,2],[154,4,158,4],[154,5,157,5],[160,2,164,2],[160,4,164,4],[160,5,163,5],[166,4,167,5],[168,2,172,2],[168,4,172,4],[168,5,171,5],[174,2,178,2],[174,4,178,4],[174,5,177,5],[180,2,184,2],[180,4,184,4],[180,5,183,5],[187,2,191,2],[187,4,191,4],[187,5,190,5],[193,2,197,2],[193,4,197,4],[193,5,196,5],[199,2,203,2],[199,4,203,4],[199,5,202,5]]}
[]
[]
[]
[]
[null,null,"Renglón",null,"Renglón","Concepto","Código\ncuenta contable","Nombre del beneficiario del pago o abono en cuenta","NIT","Retención en la fuente a título de renta, IVA, Timbre e INC",null,"Devolución de retenciones de períodos anteriores"]
[{"$nulls":9},"Base sujeta a retención para pagos o abonos en cuenta","Retenciones a título de renta"]
[]
[null,null,27,null,52,"Rentas de trabajo"]
[]
[]
[]
[{"$nulls":5},"SUBTOTAL",{"$nulls":3},{"$f":"SUM(J8:J11)","v":0},{"$f":"SUM(K8:K11)","v":0}]
[]
[null,null,28,null,53,"Rentas de pensiones"]
[]
[]
[]
[{"$nulls":5},"SUBTOTAL",{"$nulls":3},{"$f":"SUM(J14:J17)","v":0},{"$f":"SUM(K14:K17)","v":0}]
[]
[null,null,29,null,54,"Honorarios"]
[]
[]
[]
[{"$nulls":5},"SUBTOTAL",{"$nulls":3},{"$f":"SUM(J20:J23)","v":0},{"$f":"SUM(K20:K23)","v":0}]
[]
[null,null,30,null,55,"Comisiones"]
[]
[]
[]
[{"$nulls":5},"SUBTOTAL",{"$nulls":3},{"$f":"SUM(J26:J29)","v":0},{"$f":"SUM(K26:K29)","v":0}]
[]
[null,null,31,null,56,"Servicios"]
[]
[]
[]
[{"$nulls":5},"SUBTOTAL",{"$nulls":3},{"$f":"SUM(J32:J35)","v":0},{"$f":"SUM(K32:K35)","v":0}]
[]
[null,null,32,null,57,"Rendimientos financieros e intereses"]
[]
[]
[]
[{"$nulls":5},"SUBTOTAL",{"$nulls":3},{"$f":"SUM(J38:J41)","v":0},{"$f":"SUM(K38:K41)","v":0}]
[]
[null,null,33,null,58,"Arrendamientos (Muebles e inmuebles)"]
[]
[]
[]
[{"$nulls":5},"SUBTOTAL",{"$nulls":3},{"$f":"SUM(J44:J47)","v":0},{"$f":"SUM(K44:K47)","v":0}]
[]
[null,null,34,null,59,"Regalias y explotación de la propiedad intelectual"]
[]
[]
[]
[{"$nulls":5},"SUBTOTAL",{"$nulls":3},{"$f":"SUM(J50:J53)","v":0},{"$f":"SUM(K50:K53)","v":0}]
[]
[null,null,35,null,60,"Dividendos y participaciones"]
[]
[]
[]
[{"$nulls":5},"SUBTOTAL",{"$nulls":3},{"$f":"SUM(J56:J59)","v":0},{"$f":"SUM(K56:K59)","v":0}]
[]
[null,null,36,null,61,"Compras"]
[]
[]
[]
[{"$nulls":5},"SUBTOTAL",{"$nulls":3},{"$f":"SUM(J62:J65)","v":0},{"$f":"SUM(K62:K65)","v":0}]
[]
[null,null,37,null,62,"Transacciones con tarjetas débito y crédito"]
[]
[]
[]
[{"$nulls":5},"SUBTOTAL",{"$nulls":3},{"$f":"SUM(J68:J71)","v":0},{"$f":"SUM(K68:K71)","v":0}]
[]
[null,null,38,null,63,"Contratos de Construcción"]
[]
[]
[]
[{"$nulls":5},"SUBTOTAL",{"$nulls":3},{"$f":"SUM(J74:J77)","v":0},{"$f":"SUM(K74:K77)","v":0}]
[]
[null,null,39,null,64,"Enajenación de activos fijos de personas naturales ante notarios y autoridades de tránsito"]
[]
[]
[]
[{"$nulls":5},"SUBTOTAL",{"$nulls":3},{"$f":"SUM(J80:J83)","v":0},{"$f":"SUM(K80:K83)","v":0}]
[]
[null,null,40,null,65,"Loterias, rifas, apuestas y similares"]
[]
[]
[]
[{"$nulls":5},"SUBTOTAL",{"$nulls":3},{"$f":"SUM(J86:J89)","v":0},{"$f":"SUM(K86:K89)","v":0}]
[]
[null,null,41,null,66,"Otros pagos sujetos a retención"]
[]
[]
[]
[{"$nulls":5},"SUBTOTAL",{"$nulls":3},{"$f":"SUM(J92:J95)","v":0},{"$f":"SUM(K92:K95)","v":0}]
[]
[{"$nulls":4},"AUTORRETENCIONES"]
[]
[null,null,42,null,67,"Contribuyentes exonerados de aportes  (artículo 114 -1 del  ET)"]
[]
[]
[]
[{"$nulls":5},"SUBTOTAL",{"$nulls":3},{"$f":"SUM(J100:J103)","v":0},{"$f":"SUM(K100:K103)","v":0}]
[]
[null,null,43,null,68,"Ventas"]
[]
[]
[]
[{"$nulls":5},"SUBTOTAL",{"$nulls":3},{"$f":"SUM(J106:J109)","v":0},{"$f":"SUM(K106:K109)","v":0}]
[]
[null,null,44,null,69,"Honorarios"]
[]
[]
[]
[{"$nulls":5},"SUBTOTAL",{"$nulls":3},{"$f":"SUM(J112:J115)","v":0},{"$f":"SUM(K112:K115)","v":0}]
[]
[null,null,45,null,70,"Comisiones"]
[]
[]
[]
[{"$nulls":5},"SUBTOTAL",{"$nulls":3},{"$f":"SUM(J118:J121)","v":0},{"$f":"SUM(K118:K121)","v":0}]
[]
[null,null,46,null,71,"Servicios"]
[]
[]
[]
[{"$nulls":5},"SUBTOTAL",{"$nulls":3},{"$f":"SUM(J124:J127)","v":0},{"$f":"SUM(K124:K127)","v":0}]
[]
[null,null,47,null,72,"Rendimientos financieros"]
[]
[]
[]
[{"$nulls":5},"SUBTOTAL",{"$nulls":3},{"$f":"SUM(J130:J133)","v":0},{"$f":"SUM(K130:K133)","v":0}]
[]
[null,null,48,null,73,"Pagos mensuales provisionales de carácter voluntario (hidrocarburos y demás productos mineros)"]
[]
[]
[]
[{"$nulls":9},{"$f":"SUM(J136:J139)","v":0},{"$f":"SUM(K136:K139)","v":0}]
[]
[null,null,49,null,74,"Otros conceptos"]
[]
[]
[]
[{"$nulls":5},"SUBTOTAL",{"$nulls":3},{"$f":"SUM(J142:J145)","v":0},{"$f":"SUM(K142:K145)","v":0}]
[]
[]
[null,null,50,null,75,"Pagos o abonos en cuenta al exterior a países sin convenio"]
[]
[]
[]
[{"$nulls":5},"SUBTOTAL",{"$nulls":3},{"$f":"SUM(J149:J152)","v":0},{"$f":"SUM(K149:K152)","v":0}]
[]
[null,null,51,null,76,"Pagos o abonos en cuenta al exterior a países con convenio vigente"]
[]
[]
[]
[{"$nulls":5},"SUBTOTAL",{"$nulls":3},{"$f":"SUM(J155:J158)","v":0},{"$f":"SUM(K155:K158)","v":0}]
[]
[{"$nulls":4},77,"Menos retenciones practicadas en exceso o indebidas o por operaciones anuladas, rescindidas o resueltas"]
[]
[]
[]
[{"$nulls":5},"SUBTOTAL",{"$nulls":4},{"$f":"SUM(K161:K164)","v":0}]
[]
[{"$nulls":4},"A TÍTULO DE IVA"]
[]
[{"$nulls":4},79,"A responsables del impuesto sobre las ventas"]
[]
[]
[]
[{"$nulls":5},"SUBTOTAL",{"$nulls":4},{"$f":"SUM(K169:K172)","v":0}]
[]
[{"$nulls":4},80,"Retención de IVA - Practicadas por servicios a no residentes o no domiciliados"]
[]
[]
[]
[{"$nulls":5},"SUBTOTAL",{"$nulls":4},{"$f":"SUM(K175:K178)","v":0}]
[]
[{"$nulls":4},81,"Menos retenciones practicadas en exceso o indebidas o por operaciones anuladas, rescindidas o resueltas"]
[]
[]
[]
[{"$nulls":5},"SUBTOTAL",{"$nulls":4},{"$f":"SUM(K181:K184)","v":0}]
[]
[]
[{"$nulls":4},83,"Retenciones impuesto de timbre nacional"]
[]
[]
[]
[{"$nulls":5},"SUBTOTAL",{"$nulls":4},{"$f":"SUM(K188:K191)","v":0}]
[]
[{"$nulls":4},84,"Retenciones contribución laudos arbitrales"]
[]
[]
[]
[{"$nulls":5},"SUBTOTAL",{"$nulls":4},{"$f":"SUM(K194:K197)","v":0}]
[]
[{"$nulls":4},86,"Sanciones"]
[]
[]
[]
[{"$nulls":5},"SUBTOTAL",{"$nulls":4},{"$f":"SUM(K200:K203)","v":0}]

{"sheet":"Anexo 2","index":8,"n_rows":67,"n_cols":74,"rows_kept":67,"merged":[[2,1,2,77],[3,1,3,77],[5,1,8,15],[5,16,8,52],[5,53,7,58],[5,59,7,62],[5,63,8,77],[8,53,8,58],[8,59,8,62],[9,1,9,40],[9,57,9,59],[9,61,9,70],[16,5,16,40],[16,49,16,77],[17,2,17,12],[17,13,17,21],[17,22,17,37],[17,38,17,41],[17,42,17,57],[17,58,17,66],[17,67,17,77],[18,2,18,12],[18,13,18,21],[18,22,18,37],[18,38,18,41],[18,42,18,57],[18,58,18,66],[18,67,18,77],[19,2,19,12],[19,13,19,21],[19,22,19,37],[19,38,19,41],[19,42,19,57],[19,58,19,66],[19,67,19,77],[20,2,20,12],[20,13,20,21],[20,22,20,37],[20,38,20,41],[20,42,20,57],[20,58,20,66],[20,67,20,77],[21,2,21,12],[21,13,21,21],[21,22,21,37],[21,38,21,41],[21,42,21,57],[21,58,21,66],[21,67,21,77],[22,2,22,12],[22,13,22,21],[22,22,22,37],[22,38,22,41],[22,42,22,57],[22,58,22,66],[22,67,22,77],[23,2,23,12],[23,13,23,21],[23,22,23,37],[23,38,23,41],[23,42,23,57],[23,58,23,66],[23,67,23,77],[24,2,24,12],[24,13,24,21],[24,22,24,37],[24,38,24,41],[24,42,24,57],[24,58,24,66],[24,67,24,77],[25,2,25,12],[25,13,25,21],[25,22,25,37],[25,38,25,41],[25,42,25,57],[25,58,25,66],[25,67,25,77],[26,2,26,12],[26,13,26,21],[26,22,26,37],[26,38,26,41],[26,42,26,57],[26,58,26,66],[26,67,26,77],[27,2,27,12],[27,13,27,21],[27,22,27,37],[27,38,27,41],[27,42,27,57],[27,58,27,66],[27,67,27,77],[28,2,28,12],[28,13,28,21],[28,22,28,37],[28,38,28,41],[28,42,28,57],[28,58,28,66],[28,67,28,77],[29,2,29,12],[29,13,29,21],[29,22,29,37],[29,38,29,41],[29,42,29,57],[29,58,29,66],[29,67,29,77],[30,2,30,12],[30,13,30,21],[30,22,30,37],[30,38,30,41],[30,42,30,57],[30,58,30,66],[30,67,30,77],[31,2,31,12],[31,13,31,21],[31,22,31,37],[31,38,31,41],[31,42,31,57],[31,58,31,66],[31,67,31,77],[32,2,32,12],[32,13,32,21],[32,22,32,37],[32,38,32,41],[32,42,32,57],[32,58,32,66],[32,67,32,77],[33,2,33,12],[33,13,33,21],[33,22,33,37],[33,38,33,41],[33,42,33,57],[33,58,33,66],[33,67,33,77],[34,2,34,12],[34,13,34,21],[34,22,34,37],[34,38,34,41],[34,42,34,57],[34,58,34,66],[34,67,34,77],[35,2,35,12],[35,13,35,21],[35,22,35,37],[35,38,35,41],[35,42,35,57],[35,58,35,66],[35,67,35,77],[36,2,36,12],[36,13,36,21],[36,22,36,37],[36,38,36,41],[36,42,36,57],[36,58,36,66],[36,67,36,77],[37,2,37,12],[37,13,37,21],[37,22,37,37],[37,38,37,41],[37,42,37,57],[37,58,37,66],[37,67,37,77],[38,2,38,12],[38,13,38,21],[38,22,38,37],[38,38,38,41],[38,42,38,57],[38,58,38,66],[38,67,38,77],[39,2,39,12],[39,13,39,21],[39,22,39,37],[39,38,39,41],[39,42,39,57],[39,58,39,66],[39,67,39,77],[40,2,40,12],[40,13,40,21],[40,22,40,37],[40,38,40,41],[40,42,40,57],[40,58,40,66],[40,67,40,77],[41,2,41,12],[41,13,41,21],[41,22,41,37],[41,38,41,41],[41,42,41,57],[41,58,41,66],[41,67,41,77],[42,2,42,12],[42,13,42,21],[42,22,42,37],[42,38,42,41],[42,42,42,57],[42,58,42,66],[42,67,42,77],[43,2,43,12],[43,13,43,21],[43,22,43,37],[43,38,43,41],[43,42,43,57],[43,58,43,66],[43,67,43,77],[44,2,44,12],[44,13,44,21],[44,22,44,37],[44,38,44,41],[44,42,44,57],[44,58,44,66],[44,67,44,77],[45,2,45,12],[45,13,45,21],[45,22,45,37],[45,38,45,41],[45,42,45,57],[45,58,45,66],[45,67,45,77],[46,2,46,12],[46,13,46,21],[46,22,46,37],[46,38,46,41],[46,42,46,57],[46,58,46,66],[46,67,46,77],[47,2,47,12],[47,13,47,21],[47,22,47,37],[47,38,47,41],[47,42,47,57],[47,58,47,66],[47,67,47,77],[48,2,48,12],[48,13,48,21],[48,22,48,37],[48,38,48,41],[48,42,48,57],[48,58,48,66],[48,67,48,77],[49,2,49,12],[49,13,49,21],[49,22,49,37],[49,38,49,41],[49,42,49,57],[49,58,49,66],[49,67,49,77],[50,2,50,12],[50,13,50,21],[50,22,50,37],[50,38,50,41],[50,42,50,57],[50,58,50,66],[50,67,50,77],[51,2,51,12],[51,13,51,21],[51,22,51,37],[51,38,51,41],[51,42,51,57],[51,58,51,66],[51,67,51,77],[52,2,52,12],[52,13,52,21],[52,22,52,37],[52,38,52,41],[52,42,52,57],[52,58,52,66],[52,67,52,77],[53,2,53,12],[53,13,53,21],[53,22,53,37],[53,38,53,41],[53,42,53,57],[53,58,53,66],[53,67,53,77],[54,2,54,12],[54,13,54,21],[54,22,54,37],[54,38,54,41],[54,42,54,57],[54,58,54,66],[54,67,54,77],[55,2,55,12],[55,13,55,21],[55,22,55,37],[55,38,55,41],[55,42,55,57],[55,58,55,66],[55,67,55,77],[56,2,56,12],[56,13,56,21],[56,22,56,37],[56,38,56,41],[56,42,56,57],[56,58,56,66],[56,67,56,77],[57,2,57,12],[57,13,57,21],[57,22,57,37],[57,38,57,41],[57,42,57,57],[57,58,57,66],[57,67,57,77],[58,2,58,12],[58,13,58,21],[58,22,58,37],[58,38,58,41],[58,42,58,57],[58,58,58,66],[58,67,58,77],[59,2,59,12],[59,13,59,21],[59,22,59,37],[59,38,59,41],[59,42,59,57],[59,58,59,66],[59,67,59,77],[60,2,60,12],[60,13,60,21],[60,22,60,37],[60,38,60,41],[60,42,60,57],[60,58,60,66],[60,67,60,77],[61,2,61,12],[61,13,61,21],[61,22,61,37],[61,38,61,41],[61,42,61,57],[61,58,61,66],[61,67,61,77],[62,2,62,12],[62,13,62,21],[62,22,62,37],[62,38,62,41],[62,42,62,57],[62,58,62,66],[62,67,62,77],[63,2,63,12],[63,13,63,21],[63,22,63,37],[63,38,63,41],[63,42,63,57],[63,58,63,66],[63,67,63,77],[64,2,64,12],[64,13,64,21],[64,22,64,37],[64,38,64,41],[64,42,64,57],[64,58,64,66],[64,67,64,77],[65,2,65,12],[65,13,65,21],[65,22,65,37],[65,38,65,41],[65,42,65,57],[65,58,65,66],[65,67,65,77],[66,2,66,12],[66,13,66,21],[66,22,66,37],[66,38,66,41],[66,42,66,57],[66,58,66,66],[66,67,66,77],[68,1,69,15],[68,16,69,51],[68,53,69,58],[68,59,69,62],[68,63,69,77]]}
[]
[]
[]
[]
[]
[{"$nulls":16},"Declaración de Retenciones en la Fuente "]
[]
[]
[]
[{"$nulls":52},"Página",{"$nulls":7},"de",{"$nulls":12},"Hoja 2"]
[null,"Espacio reservado para la DIAN",{"$nulls":39},"4. Número de formulario"]
[]
[]
[]
[]
[{"$nulls":8},1,{"$nulls":9},2,null,3,3,{"$nulls":12},4,{"$nulls":13},6]
[]
[null,null,"90. A paises",{"$nulls":10},"91.\nConcepto de \npago",{"$nulls":8},"92. País",{"$nulls":15},"Cód",{"$nulls":3},"93. Base",{"$nulls":15},"94.Tarifa (%)",{"$nulls":8},"95. Valor retención"]
[null,1]
[null,{"$f":"+B19+1","v":2}]
[null,3]
[null,4]
[null,5]
[null,6]
[null,7]
[null,8]
[null,9]
[null,10]
[null,11]
[null,12]
[null,13]
[null,14]
[null,15]
[null,16]
[null,17]
[null,18]
[null,19]
[null,20]
[null,21]
[null,22]
[null,23]
[null,24]
[null,25]
[null,26]
[null,27]
[null,28]
[null,29]
[null,30]
[null,31]
[null,32]
[null,33]
[null,34]
[null,35]
[null,36]
[null,37]
[{"$f":"+B55","v":37},38]
[{"$f":"+S55","v":0},39]
[null,40]
[null,41]
[null,42]
[null,43]
[null,44]
[null,45]
[null,46]
[null,47]
[null,48]
[null,49]

{"sheet":"F350","index":9,"n_rows":62,"n_cols":62,"rows_kept":62,"merged":[[1,11,3,38],[1,39,3,44],[1,45,3,51],[6,17,6,24],[7,2,7,24],[10,1,14,1],[11,17,11,25],[11,26,11,33],[11,34,11,41],[11,42,11,51],[12,17,12,25],[12,26,12,33],[12,34,12,41],[12,42,12,51],[13,48,13,51],[14,2,14,47],[14,48,14,49],[14,50,14,51],[15,1,15,7],[15,9,15,11],[15,12,15,13],[15,15,15,21],[15,22,15,27],[15,28,15,39],[15,40,15,45],[15,46,15,48],[15,49,15,51],[16,1,16,26],[16,27,16,40],[16,41,16,51],[17,1,17,26],[17,28,17,40],[17,42,17,51],[18,1,18,26],[18,28,18,40],[18,42,18,51],[19,1,19,26],[19,28,19,40],[19,42,19,51],[20,1,20,26],[20,28,20,40],[20,42,20,51],[21,1,21,26],[21,28,21,40],[21,42,21,51],[22,1,22,26],[22,28,22,40],[22,42,22,51],[23,1,23,26],[23,28,23,40],[23,42,23,51],[24,1,24,26],[24,28,24,40],[24,42,24,51],[25,1,25,26],[25,28,25,40],[25,42,25,51],[26,1,26,26],[26,28,26,40],[26,42,26,51],[27,1,27,26],[27,28,27,40],[27,42,27,51],[28,1,28,26],[28,28,28,40],[28,42,28,51],[29,1,29,26],[29,28,29,40],[29,42,29,51],[30,1,30,26],[30,28,30,40],[30,42,30,51],[31,1,31,26],[31,28,31,40],[31,42,31,51],[32,1,39,1],[32,2,32,26],[32,28,32,40],[32,42,32,51],[33,2,33,26],[33,28,33,40],[33,42,33,51],[34,2,34,26],[34,28,34,40],[34,42,34,51],[35,2,35,26],[35,28,35,40],[35,42,35,51],[36,2,36,26],[36,28,36,40],[36,42,36,51],[37,2,37,26],[37,28,37,40],[37,42,37,51],[38,2,38,26],[38,28,38,40],[38,42,38,51],[39,2,39,26],[39,28,39,40],[39,42,39,51],[40,1,40,26],[40,28,40,40],[40,42,40,51],[41,1,41,26],[41,28,41,40],[41,42,41,51],[42,1,42,40],[42,42,42,51],[43,1,43,40],[43,42,43,51],[44,1,44,51],[45,1,48,1],[45,2,45,40],[45,42,45,51],[46,2,46,40],[46,42,46,51],[47,2,47,40],[47,42,47,51],[48,2,48,40],[48,42,48,51],[49,1,49,40],[49,42,49,51],[50,1,50,40],[50,42,50,51],[51,1,53,1],[51,2,51,40],[51,42,51,51],[52,2,52,40],[52,42,52,51],[53,2,53,40],[53,42,53,51],[54,1,54,20],[54,21,54,51],[55,16,55,31],[56,16,56,31],[56,32,56,39],[56,41,56,50],[58,32,61,51],[60,16,60,31],[61,1,61,6],[61,9,61,14],[61,16,61,31]]}
[]
[{"$nulls":11},"Declaración Retenciones en la Fuente",{"$nulls":27},"Privada"]
[]
[]
[null,"1. Año",null,null,2,0,2,1,{"$nulls":12},"3. Período",null,null,{"$f":"IFERROR(MID(VLOOKUP(Datos!seleccion,Tablas!I3:J14,2,FALSE),1,1),0)","v":0},{"$f":"IFERROR(MID(VLOOKUP(Datos!seleccion,Tablas!I3:J14,2,FALSE),2,1),0)","v":0},{"$nulls":30},1]
[null,"Espacio reservado para la DIAN",{"$nulls":25},"4. Número de Formulario"]
[]
[]
[]
[]
[null,"Datos del\ndeclarante","5. Número de  Identificación Tributaria (NIT)",{"$nulls":13},"6. DV","7. Primer apellido",{"$nulls":8},"8. Segundo apellido",{"$nulls":7},"9. Primer nombre",{"$nulls":7},"10. Otros nombres"]
[null,null,{"$f":"MID(Datos!$F$12,1,1)","v":""},{"$f":"MID(Datos!$F$12,2,1)","v":""},{"$f":"MID(Datos!$F$12,3,1)","v":""},{"$f":"MID(Datos!$F$12,4,1)","v":""},{"$f":"MID(Datos!$F$12,5,1)","v":""},{"$f":"MID(Datos!$F$12,6,1)","v":""},{"$f":"MID(Datos!$F$12,7,1)","v":""},{"$f":"MID(Datos!$F$12,8,1)","v":""},{"$f":"MID(Datos!$F$12,9,1)","v":""},{"$f":"MID(Datos!$F$12,10,1)","v":""},{"$f":"MID(Datos!$F$12,11,1)","v":""},{"$f":"MID(Datos!$F$12,12,1)","v":""},{"$f":"MID(Datos!$F$12,13,1)","v":""},{"$f":"MID(Datos!$F$12,14,1)","v":""},{"$f":"IF(Datos!I12=0,\"\",Datos!I12)","v":""},{"$f":"IF(Datos!F14=\"Persona natural\",IF(Datos!F16=0,\"\",Datos!F16),\"\")","v":""},{"$nulls":8},{"$f":"IF(Datos!F14=\"Persona natural\",IF(Datos!K16=0,\"\",Datos!K16),\"\")","v":""},{"$nulls":7},{"$f":"IF(Datos!F14=\"Persona natural\",IF(Datos!F18=0,\"\",Datos!F18),\"\")","v":""},{"$nulls":7},{"$f":"IF(Datos!F14=\"Persona natural\",IF(Datos!K18=0,\"\",Datos!K18),\"\")","v":""}]
[]
[null,null,"11.  Razón Social",{"$nulls":45},"12. Cód. Dirección Seccional."]
[null,null,{"$f":"IF(Datos!F14=\"Persona jurídica o sociedad de hecho\",IF(Datos!F20=0,\"\",Datos!F20),\"\")","v":""},{"$nulls":45},{"$f":"MID(Datos!M22,1,1)","v":"0"},null,{"$f":"MID(Datos!M22,2,1)","v":"0"}]
[null,"Si es una corrección Indique:",{"$nulls":7},"25. Cód.",null,null,{"$f":"IF(Datos!F25=\"\",\"\",Datos!F25)","v":""},null,null,"26. No. Formulario anterior",{"$nulls":6},{"$f":"IF(Datos!K25=\"\",\"\",Datos!K25)","v":""},{"$nulls":5},"98. Autorretenedores personas jurídicas exonerados de aportes (Art. 114-1 E.T.). ",{"$nulls":17},"99.Tarifa"]
[null,"Concepto",{"$nulls":25},"Base sujeta a retención para pagos o abonos en cuenta",{"$nulls":13},"Retenciones a título de renta"]
[null,"Rentas de trabajo",{"$nulls":25},27,{"$f":"ROUND(Anexo!J12,-3)","v":0},{"$nulls":12},52,{"$f":"ROUND(Anexo!K12,-3)","v":0}]
[null,"Rentas de pensiones",{"$nulls":25},{"$f":"AB18+1","v":28},{"$f":"ROUND(Anexo!J18,-3)","v":0},{"$nulls":12},53,{"$f":"ROUND(Anexo!K18,-3)","v":0}]
[null,"Honorarios",{"$nulls":25},29,{"$f":"ROUND(Anexo!J24,-3)","v":0},{"$nulls":12},54,{"$f":"ROUND(Anexo!K24,-3)","v":0}]
[null,"Comisiones",{"$nulls":25},30,{"$f":"ROUND(Anexo!J30,-3)","v":0},{"$nulls":12},55,{"$f":"ROUND(Anexo!K30,-3)","v":0}]
[null,"Servicios",{"$nulls":25},31,{"$f":"ROUND(Anexo!J36,-3)","v":0},{"$nulls":12},56,{"$f":"ROUND(Anexo!K36,-3)","v":0}]
[null,"Rendimientos financieros e intereses",{"$nulls":25},32,{"$f":"ROUND(Anexo!J42,-3)","v":0},{"$nulls":12},57,{"$f":"ROUND(Anexo!K42,-3)","v":0}]
[null,"Arrendamientos (Muebles e inmuebles)",{"$nulls":25},33,{"$f":"ROUND(Anexo!J48,-3)","v":0},{"$nulls":12},58,{"$f":"ROUND(Anexo!K48,-3)","v":0}]
[null,"Regalias y explotación de la propiedad intelectual",{"$nulls":25},34,{"$f":"ROUND(Anexo!J54,-3)","v":0},{"$nulls":12},59,{"$f":"ROUND(Anexo!K54,-3)","v":0}]
[null,"Dividendos y participaciones",{"$nulls":25},35,{"$f":"ROUND(Anexo!J60,-3)","v":0},{"$nulls":12},60,{"$f":"ROUND(Anexo!K60,-3)","v":0}]
[null,"Compras",{"$nulls":25},36,{"$f":"ROUND(Anexo!J66,-3)","v":0},{"$nulls":12},61,{"$f":"ROUND(Anexo!K66,-3)","v":0}]
[null,"Transacciones con tarjetas débito y crédito",{"$nulls":25},37,{"$f":"ROUND(Anexo!J72,-3)","v":0},{"$nulls":12},62,{"$f":"ROUND(Anexo!K72,-3)","v":0}]
[null,"Contratos de Construcción",{"$nulls":25},38,{"$f":"ROUND(Anexo!J78,-3)","v":0},{"$nulls":12},63,{"$f":"ROUND(Anexo!K78,-3)","v":0}]
[null,"Enajenación de activos fijos de personas naturales ante notarios y autoridades de tránsito",{"$nulls":25},39,{"$f":"ROUND(Anexo!J84,-3)","v":0},{"$nulls":12},64,{"$f":"ROUND(Anexo!K84,-3)","v":0}]
[null,"Loterias, rifas apuestas y similares",{"$nulls":25},{"$f":"AB30+1","v":40},{"$f":"ROUND(Anexo!J90,-3)","v":0},{"$nulls":12},65,{"$f":"ROUND(Anexo!K90,-3)","v":0}]
[null,"Otros pagos sujetos a retención",{"$nulls":25},41,{"$f":"ROUND(Anexo!J96,-3)","v":0},{"$nulls":12},66,{"$f":"ROUND(Anexo!K96,-3)","v":0}]
[null,"Autorretenciones","Contribuyentes exonerados de aportes  (Art. 114 -1  E.T.)",{"$nulls":24},42,{"$f":"ROUND(Anexo!J104,-3)","v":0},{"$nulls":12},67,{"$f":"ROUND(Anexo!K104,-3)","v":0}]
[null,null,"Ventas",{"$nulls":24},43,{"$f":"ROUND(Anexo!J110,-3)","v":0},{"$nulls":12},68,{"$f":"ROUND(Anexo!K110,-3)","v":0}]
[null,null,"Honorarios",{"$nulls":24},44,{"$f":"ROUND(Anexo!J116,-3)","v":0},{"$nulls":12},69,{"$f":"ROUND(Anexo!K116,-3)","v":0}]
[null,null,"Comisiones",{"$nulls":24},45,{"$f":"ROUND(Anexo!J122,-3)","v":0},{"$nulls":12},70,{"$f":"ROUND(Anexo!K122,-3)","v":0}]
[null,null,"Servicios",{"$nulls":24},46,{"$f":"ROUND(Anexo!J128,-3)","v":0},{"$nulls":12},71,{"$f":"ROUND(Anexo!K128,-3)","v":0}]
[null,null,"Rendimientos financieros",{"$nulls":24},47,{"$f":"ROUND(Anexo!J134,-3)","v":0},{"$nulls":12},72,{"$f":"ROUND(Anexo!K134,-3)","v":0}]
[null,null,"Pagos mensuales provisionales de carácter voluntario (hidrocarburos y demás productos mineros)",{"$nulls":24},48,{"$f":"ROUND(Anexo!J140,-3)","v":0},{"$nulls":12},73,{"$f":"ROUND(Anexo!K140,-3)","v":0}]
[null,null,"Otros conceptos",{"$nulls":24},49,{"$f":"ROUND(Anexo!J146,-3)","v":0},{"$nulls":12},74,{"$f":"ROUND(Anexo!K146,-3)","v":0}]
[null,"Pagos o abonos en cuenta al exterior a paises sin convenio",{"$nulls":25},50,{"$f":"ROUND(Anexo!J153,-3)","v":0},{"$nulls":12},75,{"$f":"ROUND(Anexo!K153,-3)","v":0}]
[null,"Pagos o abonos en cuenta al exterior a paises con convenio vigente",{"$nulls":25},51,{"$f":"ROUND(Anexo!J159,-3)","v":0},{"$nulls":12},76,{"$f":"ROUND(Anexo!K159,-3)","v":0}]
[null,"Menos retenciones practicadas en exceso o indebidas o por operaciones anuladas, rescindidas o resueltas.",{"$nulls":39},77,{"$f":"ROUND(Anexo!K165,-3)","v":0}]
[null,"Total retenciones renta y complementarios (Sume casillas 52 a 76 y reste casilla 77)",{"$nulls":39},78,{"$f":"SUM(AQ18:AZ42)-AQ43","v":0}]
[null,"Retenciones practicadas por otros impuestos"]
[null,"A título de IVA","A responsables del impuesto sobre las ventas",{"$nulls":38},79,{"$f":"ROUND(Anexo!K173,-3)","v":0}]
[null,null,"Practicadas por servicios a no residentes o no domiciliados",{"$nulls":38},80,{"$f":"ROUND(Anexo!K179,-3)","v":0}]
[null,null,"Menos retenciones practicadas en exceso o indebidas o por operaciones anuladas, rescindidas o resueltas",{"$nulls":38},81,{"$f":"ROUND(Anexo!K185,-3)","v":0},{"$nulls":18},"                 "]
[null,null,"Total retenciones I.V.A. (Sume 79 a 80 y reste 81)",{"$nulls":38},82,{"$f":"SUM(AQ46:AZ47)-AQ48","v":0},{"$nulls":15},"                 "]
[null,"Retenciones Impuesto de timbre nacional",{"$nulls":39},83,{"$f":"ROUND(Anexo!K192,-3)","v":0},{"$nulls":18},"      "]
[null,"Retenciones contribución laudos arbitrales ",{"$nulls":39},84,{"$f":"ROUND(Anexo!K198,-3)","v":0}]
[null,"Total","Total Retenciones (78 + 82 + 83 + 84)",{"$nulls":38},85,{"$f":"+AQ44+AQ49+AQ50+AQ51","v":0}]
[null,null,"Sanciones",{"$nulls":38},86,{"$f":"ROUND(Anexo!K204,-3)","v":0}]
[null,null,"Total retenciones más sanciones (85 + 86)",{"$nulls":38},87,{"$f":"AQ52+AQ53","v":0}]
[null,"88. No. Identificación signatario",{"$nulls":19},"89. DV"]
[null,"981.Cód. Representación",{"$nulls":6},{"$f":"+MID(Datos!M33,1,1)","v":""},{"$f":"+MID(Datos!M33,2,1)","v":""},{"$nulls":6},"997. Espacio exclusivo para el Sello de la entidad recaudadora"]
[null,"Firma del declarante o de quien lo representa",{"$nulls":14},"(Fecha efectiva de la transacción)",{"$nulls":15}," 980. Pago Total",{"$nulls":7},"$  ",{"$f":"+AQ54","v":0}]
[]
[null,"982. Código Contador o Revisor Fiscal",{"$nulls":10},{"$f":"IF(Datos!F35=0,\"\",Datos!F35)","v":""},{"$nulls":19},"996. Espacio para el número interno de la DIAN / Adhesivo"]
[null,"Firma Contador o Revisor Fiscal.              994. Con salvedades",{"$nulls":12},{"$f":"IF(Datos!F37=\"Sí\",\"X\",\"\")","v":""},{"$nulls":9}," "]
[{"$nulls":16},"Coloque el timbre de la máquina"]
[null,"983. No. Tarjeta profesional ",{"$nulls":7},{"$f":"IF(Datos!K35=0,\"\",Datos!K35)","v":""},{"$nulls":6},"registradora al dorso de este formulario"]

{"sheet":"Listado completo de archivos","index":10,"n_rows":2494,"n_cols":2,"rows_kept":2494,"merged":[[6,0,6,1]]}
[]
[]
[]
[]
[]
[]
["ESTE ES EL LISTADO COMPLETO DE LAS HERRAMIENTAS PUBLICADAS"]
["Última actualización: 10 de febrero de 2021"]
["Haz clic aquí para ver una versión actualizada de este listado"]
["IDEA:","Si quieres buscar una herramienta en especial en este listado, dale \"Buscar\" en Excel (Ctrl + B, en casi todos lados)."]
[]
[null,"Modelo de acta de distribución de utilidades y pago de dividendos"]
[]
[null,"[Pack de formatos] Formatos para la liquidación de nómina paso a paso"]
[]
[null,"Modelo de proyecto de distribución de utilidades en una sociedad comercial"]
[]
[null,"Rentas exentas para empresas de economía naranja – año gravable 2020"]
[]
[null,"Plantilla para elaborar formulario 220: certificado de ingresos y retenciones – año gravable 2020"]
[]
[null,"Cálculo de retención en la fuente a título de renta por concepto de pensiones"]
[]
[null,"Modelo de segunda convocatoria a asamblea general ordinaria de accionistas o junta de socios"]
[]
[null,"Modelo de acta de asamblea de constitución de empresa o fundación"]
[]
[null,"Modelo de acta del máximo órgano social para cambio de los miembros de junta directiva"]
[]
[null,"Modelo de acta de reunión de máximo órgano social para cambio de representante legal"]
[]
[null,"Modelo de acta de asamblea o junta extraordinaria por cambio de revisor fiscal (renuncia o revocatoria)"]
[]
[null,"Modelo de poder para nombrar delegado o apoderado en asamblea de copropietarios"]
[]
[null,"Simulador de los efectos del rechazo de costos y gastos en efectivo a partir de 2018"]
[]
[null,"Rentas exentas para personas jurídicas – período gravable 2020"]
[]
[null,"Modelo del certificado anual para socios y/o accionistas por el año 2020"]
[]
[null,"Modelo de convocatoria de asamblea general ordinaria de copropietarios"]
[]
[null,"Intereses moratorios sobre deudas tributarias"]
[]
[null,"Modelo de acta de decisiones de asamblea general ordinaria de copropietarios"]
[]
[null,"Normativa relacionada con la liquidación de nómina"]
[]
[null,"Solicitud compensación en dinero de las vacaciones"]
[]
[null,"Listado de actividades económicas (códigos CIIU)"]
[]
[null,"Responsabilidad en seguridad social de trabajadores independientes"]
[]
[null,"Información laboral 2021"]
[]
[null,"Liquidador de prestaciones sociales"]
[]
[null,"Liquidador de auxilio de incapacidad (valores asumidos por el empleador, la EPS o la ARL)"]
[]
[null,"[2021] Histórico de salario mínimo y auxilio de transporte"]
[]
[null,"Liquidador de horas diurnas, nocturnas, extra, dominicales y festivas"]
[]
[null,"Liquidación de nómina cuando hay incapacidad: caso práctico"]
[]
[null,"Fórmulas para liquidación de prestaciones, vacaciones y horas extra"]
[]
[null,"Caso práctico de liquidación de nómina cuando hay salario integral"]
[]
[null,"Liquidador de prestaciones sociales en período de incapacidad"]
[]
[null,"Liquidador de indemnización por despido sin justa causa (contrato indefinido)"]
[]
[null,"[Guía] Cuadro comparativo de regímenes pensionales en Colombia"]
[]
[null,"Régimen sancionatorio: 15 formatos para liquidar obligaciones en 2021"]
[]
[null,"Simulador en Excel para realizar la liquidación de contratos de trabajo"]
[]
[null,"[Edicto] Aviso de pago de salarios y prestaciones sociales de trabajador fallecido"]
[]
[null,"Liquidador de retención en la fuente con procedimiento 1 sobre rentas de trabajo durante 2021"]
[]
[null,"[2021] Histórico de la variación nominal del salario mínimo vs. la inflación 1993 – 2020"]
[]
[null,"[Guía] Tabla de retención en la fuente para el año fiscal 2021"]
[]
[null,"Tablas de retención en la fuente a título de impuestos nacionales durante el año fiscal 2021"]
[]
[null,"10 simuladores de sanciones por no declarar"]
[]
[null,"Liquidador del costo de contratación de un trabajador que devenga un salario mínimo"]
[]
[null,"Histórico de índice de precios al consumidor –IPC–"]
[]
[null,"Histórico de la tasa representativa del mercado –TRM– 2020"]
[]
[null,"Comparativo de normas tributarias afectadas con las leyes 2068, 2069 y 2070 de diciembre 31 de 2020"]
[]
[null,"[Calendario] Calendario tributario 2021 – versión para imprimir"]
[]
[null,"[Calendario] Calendario tributario distrital 2021"]
[]
[null,"Histórico de tasas de intereses moratorios Dian"]
[]
[null,"Métodos de medición de activos y pasivos según el Estándar para Pymes"]
[]
[null,"[Guía] Tabla de tarifas de honorarios profesionales para contadores públicos"]
[]
[null,"Liquidador de sanciones por expedir factura sin cumplir los requisitos legales"]
[]
[null,"Liquidador e histórico de porcentajes de reajuste fiscal"]
[]
[null,"Liquidador de sanción por extemporaneidad después del emplazamiento"]
[]
[null,"Liquidador de sanción por extemporaneidad antes del emplazamiento"]
[]
[null,"Liquidador de sanciones por no enviar información exógena, enviarla con errores o de forma extemporánea"]
[]
[null,"Liquidador de sanciones por no expedir factura"]
[]
[null,"Liquidador de sanciones por incumplir con la obligación de inscribirse al RUT"]
[]
[null,"Liquidador de sanción por inexactitud"]
[]
[null,"Liquidador de sanción por corrección presentada por el contribuyente"]
[]
[null,"Liquidador de presupuesto de copropiedad o edificio residencial"]
[]
[null,"Sanción por inexactitud para declarantes de ingresos y patrimonio (liquidador en Excel)"]
[]
[null,"Convertidor de UVT"]
[]
[null,"Lista de convenios internacionales para evitar la doble tributación – año gravable 2020"]
[]
[null,"Planilla de asistencia y toma de decisiones en asambleas de accionistas o juntas de socios"]
[]
[null,"Modelo de acta de asamblea general de accionistas"]
[]
[null,"Modelo de acta de ampliación del término de duración de una sociedad comercial"]
[]
[null,"Modelo de poder de representación en asamblea de accionistas o junta de socios"]
[]
[null,"Modelo de convocatoria extraordinaria a asamblea de accionistas o junta de socios"]
[]
[null,"Modelo de acta de cesión y venta de cuotas sociales a terceros a la sociedad de responsabilidad limitada"]
[]
[null,"Modelo de convocatoria a asamblea general ordinaria de socios o accionistas"]
[]
[null,"Modelo para cálculo de depreciación por el método de reducción de saldos"]
[]
[null,"Acta administrativa para la baja de activos fijos dañados y obsoletos"]
[]
[null,"Carta para solicitar un desembargo de bienes ante la Dian"]
[]
[null,"Modelo en Excel para el cálculo de intereses a las cesantías"]
[]
[null,"Modelo para elaborar el comprobante de pago de intereses a las cesantías"]
[]
[null,"Carta para solicitar acuerdo de pago para obligaciones vencidas ante la Dian"]
[]
[null,"Modelo para identificar ingresos que no se consideran de fuente nacional – período gravable 2020"]
[]
[null,"Cuestionario para definir si una persona natural está obligada a declarar renta"]
[]
[null,"Modelo de llamado de atención"]
[]
[null,"Contabilización de los rubros asociados a la dotación a empleados"]
[]
[null,"21 formatos para preparar el cierre contable de 2020"]
[]
[null,"Nuevos descuentos tributarios para el cierre fiscal 2020: casos prácticos"]
[]
[null,"Liquidador de procedimiento 2 con porcentaje fijo para la retención sobre salarios en diciembre de 2020"]
[]
[null,"Plantilla para definir el perfil del cargo de un empleado y sus funciones"]
[]
[null,"Políticas contables para las propiedades de inversión"]
[]
[null,"Nota sobre la determinación de valores razonables"]
[]
[null,"Certificación del contador sobre los ingresos percibidos por una persona natural"]
[]
[null,"Liquidador de nómina en un contrato de aprendizaje"]
[]
[null,"Estado de resultados con enfoque de gastos por naturaleza o función"]
[]
[null,"Venta de bienes inmuebles a largo plazo: caso práctico de impuesto diferido"]
[]
[null,"Costo fiscal de inventarios para obligados a llevar contabilidad, ¿cómo determinarlo?"]
[]
[null,"Carta para solicitar el certificado de donación para efectuar descuento tributario"]
[]
[null,"Impuesto diferido de propiedades de inversión en un contrato de leasing operativo"]
[]
[null,"Corrección de errores de períodos anteriores"]
[]
[null,"Impuesto diferido por diferencias en la tasa de depreciación de propiedades, planta y equipo"]
[]
[null,"Certificado de dependientes para efectos de deducción en la declaración de renta"]
[]
[null,"Simulador de sanción por no pagar la liquidación del contrato laboral"]
[]
[null,"[Guía] Plantilla para clasificar una entidad en un grupo de aplicación de las NIIF en Colombia"]
[]
[null,"Plantilla en Excel para la declaración de anticipos bimestrales en 2020 – régimen simple"]
[]
[null,"Calendario automatizado de implementación de la facturación electrónica"]
[]
[null,"Tratamiento contable y fiscal de los gastos de establecimiento: caso práctico"]
[]
[null,"Liquidador para el cálculo de la renta presuntiva del año gravable 2020"]
[]
[null,"Depreciación y valor máximo a deducir en impuesto de renta"]
[]
[null,"Sanción por no consignar las cesantías y no pagar los intereses"]
[]
[null,"Carta de finalización del contrato de arrendamiento por vencimiento del término"]
[]
[null,"Carta de terminación de contrato de arrendamiento de vivienda urbana"]
[]
[null,"Contabilización de impuesto diferido ante deterioro de cartera"]
[]
[null,"Determinación de diferencias temporarias e impuesto diferido"]
[]
[null,"Control de disfrute del día de la familia (planilla en Excel)"]
[]
[null,"Contrato de mutuo comercial o préstamo con intereses"]
[]
[null,"Contrato de franquicia"]
[]
[null,"Contrato de concesión comercial"]
[]
[null,"Contrato de permuta"]
[]
[null,"Contrato de anticresis"]
[]
[null,"Contrato de edición"]
[]
[null,"[Pack de formatos] 17 herramientas para mejorar tu análisis financiero"]
[]
[null,"Dación en pago"]
[]
[null,"Contrato de preposición"]
[]
[null,"Contrato de agencia comercial"]
[]
[null,"Promesa de compraventa de bien inmueble"]
[]
[null,"​ Contrato de comisión o corretaje"]
[]
[null,"Certificación de bienes y derechos recibidos por donaciones inter vivos"]
[]
[null,"Formulario 260 AG 2019 – régimen simple (personas naturales y jurídicas que llevan contabilidad)"]
[]
[null,"Formulario 260 AG 2019 – declaración anual del SIMPLE (personas naturales que no llevan contabilidad)"]
[]
[null,"Planilla automatizada para controlar la asistencia a pausas activas"]
[]
[null,"Efectivo y equivalentes al efectivo: informe sobre los hallazgos obtenidos"]
[]
[null,"Simulador de aportes al fondo de solidaridad pensional por trabajadores independientes"]
[]
[null,"Compensación de pérdidas fiscales y exceso de renta presuntiva (caso impuesto diferido)"]
[]
[null,"Impuesto diferido cuando hay compensación de pérdidas fiscales"]
[]
[null,"Formato de entrega de dotación (elementos físicos)"]
[]
[null,"Constancia de entrega de equipos y elementos de protección personal"]
[]
[null,"Dupont: índice de rentabilidad"]
[]
[null,"Liquidador avanzado para realizar la conciliación bancaria"]
[]
[null,"Guía para elaborar la hoja de vida de un contador público"]
[]
[null,"Certificado de prestación de servicios"]
[]
[null,"Carta de terminación del contrato a término fijo por vencimiento de términos"]
[]
[null,"Simulador de retenciones a practicar entre regímenes"]
[]
[null,"Indicadores financieros de mercado"]
[]
[null,"Aportes al fondo de solidaridad pensional por parte de un empleado"]
[]
[null,"Política de pago a proveedores y plantilla de control de cuentas por pagar"]
[]
[null,"[Pack de formatos] Paso a paso para gestionar tus finanzas personales"]
[]
[null,"Cálculo de la TIR y técnica del costo amortizado en el análisis financiero"]
[]
[null,"Certificado de normalización de actividades afectadas por el COVID-19"]
[]
[null,"Formulario 210 de declaración de renta, año gravable 2019 – residentes no obligados a llevar contabilidad"]
[]
[null,"Formulario 210 y formato 2517 para declaración de renta AG 2019 – residentes que llevan contabilidad"]
[]
[null,"Modelo para analizar el valor presente y el valor presente neto de una inversión"]
[]
[null,"Modelo en Excel del documento soporte para operaciones con no obligados a facturar"]
[]
[null,"Contrato de aprendizaje: certificado de desempeño y descripción de logros en la etapa práctica"]
[]
[null,"Modelo para elaborar el presupuesto de consumo o de uso de materiales (costos variables)"]
[]
[null,"Cálculo de la contribución 2020 a Supersociedades"]
[]
[null,"Certificado de prácticas realizadas por el estudiante o pasante"]
[]
[null,"Análisis de información de ventas utilizando el método del índice de estacionalidad"]
[]
[null,"Certificación para notificar al empleado exámenes médicos de egreso"]
[]
[null,"[Pack de formatos] 21 herramientas para facilitar la elaboración de solicitudes emitidas por un empleado"]
[]
[null,"Análisis vertical y horizontal aplicados a la interpretación de información financiera"]
[]
[null,"Simulador del límite de costos y gastos no soportados en factura electrónica"]
[]
[null,"Solicitud de información sobre afiliaciones a salud y riesgos laborales en un contrato de aprendizaje"]
[]
[null,"Simulador de estado de situación financiera (análisis comparativo)"]
[]
[null,"Notificación de suspensión del contrato de aprendizaje"]
[]
[null,"Simulador de CDT con una periodicidad de pago de intereses mensual o al vencimiento"]
[]
[null,"Derecho de petición para solicitar información a entidad financiera"]
[]
[null,"Solicitud de no pago de cheque"]
[]
[null,"Solicitud de intervención de la inspección de trabajo"]
[]
[null,"Contrato de aprendizaje"]
[]
[null,"Cálculos de operaciones de refinanciación de deuda: método ecuación de valor equivalente"]
[]
[null,"Formulario 420: declaración de impuesto al patrimonio 2020"]
[]
[null,"Formulario 445 – impuesto de normalización tributaria 2020 (plantilla en Excel)"]
[]
[null,"Derecho de petición para solicitar al empleador información sobre afiliaciones al sistema de seguridad integral"]
[]
[null,"Poder para adelantar trámite de solicitud de calificación de pérdida de capacidad laboral"]
[]
[null,"Porcentaje fijo de retención en la fuente sobre pagos laborales en junio de 2020 – procedimiento 2"]
[]
[null,"Simulador del punto de equilibrio en Excel – herramienta de análisis financiero"]
[]
[null,"Modelo para definir el IVA sobre el AIU en los servicios del artículo 462-1 del ET"]
[]
[null,"Cálculo de intereses presuntivos sobre préstamos entre socios y sociedades durante 2019"]
[]
[null,"Notificación al empleador sobre el fondo donde debe consignar el auxilio de cesantías"]
[]
[null,"Derecho de petición para solicitar certificado laboral"]
[]
[null,"Modelo de certificación de estados financieros consolidados"]
[]
[null,"Carta para autorizar descuento en salario por libranza"]
[]
[null,"Certificación de contador para acceder al subsidio de la prima de servicios"]
[]
[null,"Acuerdo para no laborar el sábado y distribuir jornada entre semana (sin generar horas extra)"]
[]
[null,"Formulario 110 y formato 2516 para declaración de renta 2019 de personas naturales obligadas a llevar contabilidad"]
[]
[null,"Aplicación de las rentas exentas en la renta presuntiva en el formulario 210"]
[]
[null,"Formulario 110 de declaración de renta de personas naturales, AG 2019 – no obligados a llevar contabilidad"]
[]
[null,"Cuenta de cobro para una persona que presta servicios y no es responsable de IVA"]
[]
[null,"Lista de chequeo para la Declaración de Renta de personas naturales: documentos necesarios para su elaboración"]
[]
[null,"[Contrato] Otrosí – nuevos plazos para pago de la prima de servicios de 2020 (primer semestre)"]
[]
[null,"[Carta] Solicitud de no cobro del IVA en arrendamiento de local o establecimiento comercial"]
[]
[null,"Plantilla en Excel para diligenciar el formulario 350 de retención en la fuente en 2020"]
[]
[null,"Liquidador de indemnización por despido sin justa causa (para contrato fijo u obra o labor)"]
[]
[null,"Prestación de servicio de auditoría externa"]
[]
[null,"[Carta] Propuesta de servicios de revisoría fiscal en una copropiedad"]
[]
[null,"Certificación de disminución de inventarios por obsolescencia"]
[]
[null,"Utilidad por venta de activo fijo depreciable que será renta por recuperación de deducciones"]
[]
[null,"Solicitud de trabajador para incorporarse al teletrabajo"]
[]
[null,"Carta de terminación de contrato con justa causa"]
[]
[null,"Formulario 110 y formato 2516: declaración de renta o ingresos y patrimonio – personas jurídicas AG 2019"]
[]
[null,"Calendario tributario 2020 – Versión para imprimir"]
[]
[null,"[Liquidador] Liquidador del número de trabajadores por los cuales se tiene derecho al subsidio de nómina del Paef"]
[]
[null,"[Certificaciones] Certificación para subsidio de nómina Paef – entidad sin ánimo de lucro"]
[]
[null,"[Certificaciones] Certificación para subsidio de nómina Paef – entidad del régimen tributario especial"]
[]
[null,"[Certificaciones] Certificación para que una persona natural acceda al subsidio de nómina – Paef –"]
[]
[null,"[Certificaciones] Informe del contador o revisor fiscal para que una entidad acceda al subsidio de nómina"]
[]
[null,"Modelo de certificación de estados financieros (versión simplificada)"]
[]
[null,"[Certificaciones] Certificado para modificar o suspender beneficios extralegales a causa del COVID-19"]
[]
[null,"[Liquidador] Simulador de crédito en período de gracia: estrategia de entidades financieras ante el COVID-19"]
[]
[null,"[Guía] Cuadro temático: cambios de la Resolución 000042 de 2020 sobre facturación electrónica"]
[]
[null,"Guías para el reporte de exógena 2019: ¡descárgalas ya!"]
[]
[null,"Categorías de informantes de exógena por el año gravable 2019 y los formatos que deben usar"]
[]
[null,"Formatos de exógena por el año gravable 2019: reportes de los mandatarios"]
[]
[null,"[Certificaciones] Certificado de licencia remunerada compensable: protección al empleo ante el COVID-19"]
[]
[null,"Plantilla para elaborar el formulario 300 para las declaraciones del IVA durante 2020"]
[]
[null,"Modelo del certificado anual para socios y/o accionistas por el año 2019"]
[]
[null,"Modificación de la jornada laboral y concertación de salario – COVID-19"]
[]
[null,"Acuerdo de suspensión temporal de contrato"]
[]
[null,"[Liquidador] Pago parcial del aporte al sistema general de pensiones – COVID-19"]
[]
[null,"[Guía] Sanciones relacionadas con la declaración informativa"]
[]
[null,"Sanciones relacionadas con la declaración informativa de precios de transferencia"]
[]
[null,"[Guía] Sanciones relacionadas con la documentación comprobatoria"]
[]
[null,"[Carta] Solicitud de retiro parcial de cesantías con ocasión del COVID-19"]
[]
[null,"Formato exógena 1010 por el año gravable 2019: reporte de socios, cooperados o comuneros"]
[]
[null,"Formato exógena 1004 de 2019: reporte de descuentos al impuesto de renta y régimen simple"]
[]
[null,"Formato exógena 5253 por el año gravable 2019: información de los beneficiarios efectivos"]
[]
[null,"Formato exógena 1007 por el año gravable 2019: reportes de ingresos propios"]
[]
[null,"Formato exógena 1647 por el año gravable 2019: reporte de ingresos recibidos para terceros"]
[]
[null,"Formato exógena 1009 por el año gravable 2019: reporte de cuentas por pagar"]
[]
[null,"Formato exógena 1008 por el año gravable 2019: reporte de cuentas por cobrar"]
[]
[null,"Formato exógena 1003 por el año gravable 2019: retenciones que le practicaron al informante"]
[]
[null,"Formatos exógena 1005 y 1006 del año gravable 2019: reportes de IVA generados y descontables"]
[]
[null,"Formatos exógena 1011, 1012 y 2275 por el año gravable 2019: reporte de otros datos en renta e IVA"]
[]
[null,"Formato exógena 1001 por el año gravable 2019: reporte de pagos o abonos en cuenta"]
[]
[null,"Formatos 2276 y 2280 para el reporte de información exógena de 2019"]
[]
[null,"Guías laborales para notificaciones por parte del empleador"]
[]
[null,"Notificación de vacaciones colectivas"]
[]
[null,"Asamblea de accionistas y junta de socios: realice una correcta convocatoria"]
[]
[null,"Préstamo para vivienda: modalidad de cuota fija en pesos"]
[]
[null,"Modelo para calcular cuota variable de un crédito con abonos a capital iguales"]
[]
[null,"Plantilla para elaborar formulario 220: certificado de ingresos y retenciones – año gravable 2019"]
[]
[null,"[Calendario] Calendario tributario 2019 – versión para imprimir"]
[]
[null,"Dictámenes e informes del revisor fiscal actualizados al 2020"]
[]
[null,"Informe de compilación de estados financieros con fines generales"]
[]
[null,"Reunión de junta de socios o asamblea general por derecho propio"]
[]
[null,"Clasificación de las personas jurídicas frente al impuesto de renta y al SIMPLE – año gravable 2019"]
[]
[null,"Modelo de informe de gestión"]
[]
[null,"Contrato individual de trabajo con salario integral (término fijo e indefinido)"]
[]
[null,"Acuerdo para pago de auxilios extralegales o no salariales"]
[]
[null,"Carta de aceptación de un encargo de auditoría concreto"]
[]
[null,"Informe de revisión de información financiera intermedia con conclusión adversa"]
[]
[null,"Autorización de descuentos sobre salarios por préstamos al trabajador"]
[]
[null,"Acta de entrega de dotación"]
[]
[null,"Informe de compilación de estados financieros con fines específicos"]
[]
[null,"Revisión de información financiera intermedia sin salvedades"]
[]
[null,"Cálculo del costo de renovación de matrícula mercantil y de establecimientos de comercio (año 2020)"]
[]
[null,"Revisión de información financiera intermedia con salvedades"]
[]
[null,"Impuesto de renta de personas naturales residentes en el régimen ordinario, año gravable 2019 vs. 2020"]
[]
[null,"Sanciones aplicables a la documentación comprobatoria"]
[]
[null,"Informe de auditoría sobre un solo estado financiero, elemento, partida o cuenta específicos"]
[]
[null,"Listado de contribuyentes inscritos en el régimen simple con corte a septiembre 30 de 2019"]
[]
[null,"Estados financieros consolidados: dictamen sin salvedades"]
[]
[null,"Proyección del impuesto al patrimonio y cálculo del de normalización y/o saneamiento 2020"]
[]
[null,"Informe sobre los hallazgos obtenidos en las cuentas por pagar"]
[]
[null,"Informe sobre los hallazgos obtenidos en los inventarios"]
[]
[null,"Simulador de tributación en el régimen simple vs. régimen ordinario – año gravable 2020"]
[]
[null,"Dictamen de revisor fiscal con párrafos de cuestiones clave y otras cuestiones"]
[]
[null,"Informe de auditoría – Denegación (abstención) de opinión por no obtener evidencia"]
[]
[null,"Tablas de retención en la fuente a título de impuestos nacionales durante el año fiscal 2020"]
[]
[null,"Tributación sobre dividendos y cálculo de su retención luego de la Ley 2010 de 2019"]
[]
[null,"Estados financieros consolidados: opinión desfavorable por incorrección material"]
[]
[null,"Dictamen de revisor fiscal con comunicación de cuestiones clave y párrafo de énfasis"]
[]
[null,"Comparativo de normas afectadas con la Ley de crecimiento económico 2010 de diciembre 27 de 2019"]
[]
[null,"Modelo de dictamen con opinión adversa o desfavorable"]
[]
[null,"Estados financieros consolidados: opinión con salvedades cuando no se obtiene evidencia"]
[]
[null,"[Guía] Cálculo de renta presuntiva para el período gravable 2019"]
[]
[null,"Carta para solicitar un incremento de salario al empleador"]
[]
[null,"Tributación sobre dividendos y su respectiva retención fue reglamentada por el Ministerio de Hacienda"]
[]
[null,"Dictamen de revisor fiscal que incluye opinión con salvedades"]
[]
[null,"Retención en la fuente con procedimiento 1 sobre rentas de trabajo durante 2020"]
[]
[null,"Informe de revisor fiscal bajo NIA 701: comunicación de las cuestiones clave de auditoría"]
[]
[null,"Tabla de retención en la fuente para el año fiscal 2020"]
[]
[null,"Tasa representativa del mercado –TRM– 2019"]
[]
[null,"[2020] Histórico de la variación nominal del salario mínimo vs. la inflación 1993 – 2019"]
[]
[null,"Novedades en la clasificación de bienes y servicios frente al IVA y el INC con la Ley 2010 de 2019"]
[]
[null,"[Calendario] Calendario tributario distrital 2020"]
[]
[null,"Cuadro temático con los cambios introducidos por la Ley de crecimiento 2010 de 2019"]
[]
[null,"[2020] Histórico de salario mínimo y auxilio de transporte"]
[]
[null,"[Guía] Información laboral 2020"]
[]
[null,"Porcentaje fijo de retención en la fuente sobre salarios en diciembre de 2019 – Procedimiento 2"]
[]
[null,"NIA 700 vs. NIA 700 (revisada): comparativo de estructura del informe del revisor fiscal"]
[]
[null,"Dictamen de revisor fiscal con comunicación de cuestiones clave (NIA 700 revisada y NIA 701)"]
[]
[null,"[Guía] Certificado de persona natural no declarante del impuesto de renta y complementario 2019"]
[]
[null,"Carta para invitar al empleado a disfrutar del día de la familia"]
[]
[null,"[Lista de chequeo] Cuestionario control interno – Efectivo y equivalentes de efectivo"]
[]
[null,"[Guía] Lista de chequeo información ESF Patrimonio – Formato de conciliación fiscal 2516 versión 3 AG 2020"]
[]
[null,"[Guía] Modelo de política “Base para la preparación de Estados Financieros” bajo Estándar Internacional para Pymes"]
[]
[null,"[Guía] Convenios para evitar la doble tributación aplicables al año gravable 2019"]
[]
[null,"Carta para notificar un incremento de salario"]
[]
[null,"[Guía] Ingresos que no se consideran de fuente nacional – período gravable 2019"]
[]
[null,"[Guía] Solicitud de licencia de maternidad ante la EPS por parte de una trabajadora independiente"]
[]
[null,"Rentas exentas para personas jurídicas – período gravable 2019"]
[]
[null,"Aportes a seguridad social para trabajadores independientes"]
[]
[null,"Aportes a seguridad social para trabajadores independientes con un contrato por días"]
[]
[null,"[Guía] Solicitud de licencia de paternidad a la EPS por parte de un trabajador independiente"]
[]
[null,"Carta para notificar terminación de contrato mercantil de forma unilateral"]
[]
[null,"Prestación de servicios"]
[]
[null,"[Contrato] Modelo de contrato de prestación de servicios – servicios generales"]
[]
[null,"[Liquidador] Simulador de subsidio de vivienda de interés social o prioritario"]
[]
[null,"Contrato de trabajo a término indefinido con menor de edad"]
[]
[null,"[Liquidador] Formulario 350: Declaración Mensual de Retenciones en la Fuente"]
[]
[null,"Plantilla para elaborar el formulario 445 complementario de normalización tributaria 2019"]
[]
[null,"Formulario 350: Declaración Mensual de Retención en la Fuente (plantilla avanzada)"]
[]
[null,"[Guía] Conozca quiénes están obligados a aplicar la NICC 1"]
[]
[null,"Códigos de responsabilidades tributarias (RUT casilla 53)"]
[]
[null,"[Guía] Lista de chequeo: requisitos por cumplir para solicitar ser autorretenedor de renta"]
[]
[null,"Recomendaciones a la junta directiva emitida por empleado que renuncia con justa causa"]
[]
[null,"Solicitud acuerdo de pago para saldar obligación financiera"]
[]
[null,"Terminación de contrato justa causa"]
[]
[null,"[Guía] Evaluación de las competencias y recursos de la firma"]
[]
[null,"Formulario 310: declaración del impuesto nacional al consumo (plantilla para borrador)"]
[]
[null,"Acta de diligencia de descargos"]
[]
[null,"Modelo de certificado laboral"]
[]
[null,"[Guía] Derecho de petición para retiro de centrales de riesgo por prescripción"]
[]
[null,"Modelo para tramitar una queja ante la Superintendencia Financiera de Colombia"]
[]
[null,"[Poder] Diligencias en la Dian"]
[]
[null,"Cálculo de intereses presuntivos sobre préstamos entre socios y sociedades durante 2018"]
[]
[null,"[Guía] Solicitud de retiro parcial de cesantías para vivienda"]
[]
[null,"Capital de trabajo"]
[]
[null,"[Guía] Tablas para el cálculo del tiempo entre dos fechas"]
[]
[null,"Carta de renuncia"]
[]
[null,"[Guía] Cálculo de la contribución 2019 a Supersociedades"]
[]
[null,"[Guía] Convenios para evitar la doble tributación aplicables al año gravable 2018"]
[]
[null,"Licencias de maternidad y paternidad: tipos y características"]
[]
[null,"Indicadores financieros de actividad y rentabilidad"]
[]
[null,"Indicadores financieros: márgenes de utilidad o rentabilidad"]
[]
[null,"Solicitud licencia de paternidad"]
[]
[null,"Indicadores financieros de liquidez"]
[]
[null,"Indicadores financieros de endeudamiento"]
[]
[null,"Formulario 420 – Declaración de impuesto al patrimonio"]
[]
[null,"Aspectos generales del contrato de aprendizaje"]
[]
[null,"Indicadores financieros de liquidez, endeudamiento, actividad y rentabilidad"]
[]
[null,"Consecuencias derivadas de la obligación de llevar contabilidad"]
[]
[null,"Tabla para liquidar indemnizaciones por pérdida de capacidad laboral"]
[]
[null,"Calendario tributario 2019 avanzado"]
[]
[null,"Calculadora de fechas"]
[]
[null,"Depuración del impuesto de renta para personas naturales por el año gravable 2018"]
[]
[null,"Residentes vs. no residentes frente al impuesto de renta y ganancia ocasional 2018"]
[]
[null,"Certificación del socio gestor en contratos de cuentas en participación"]
[]
[null,"Certificación del mandatario en contratos de mandato"]
[]
[null,"Formulario 210 declaración de renta año gravable 2018 – Residentes no obligados a llevar contabilidad"]
[]
[null,"Formulario 110 declaración de renta de personas naturales AG 2018 – No obligados a llevar contabilidad"]
[]
[null,"Formulario 210 y formato 2517 para renta AG 2018 – Residentes obligados a llevar contabilidad"]
[]
[null,"Formulario 110 y formato 2516 declaración de renta 2018 de personas naturales obligadas a llevar contabilidad"]
[]
[null,"Reglamentación a tener en cuenta en la declaración de renta de personas naturales año gravable 2018"]
[]
[null,"[Guía] Indicadores básicos para la declaración de renta de personas naturales por el año gravable 2018"]
[]
[null,"[Liquidador] Retención en la fuente sobre pagos laborales en junio de 2019 – Procedimiento 2"]
[]
[null,"[Guía] Modelo para proyectar el presupuesto personal del contador"]
[]
[null,"Modelo para determinar quién puede pertenecer al régimen simple de tributación"]
[]
[null,"[Guía] Diferencias entre el registro de una marca y una empresa"]
[]
[null,"Modelo para proyectar y controlar el presupuesto personal del contador"]
[]
[null,"[Guía] Petición al banco por desacuerdo en estado de cuenta o extracto"]
[]
[null,"[Guía] Lista de chequeo para evaluar la aceptación o continuidad de la relación con clientes"]
[]
[null,"[Guía] Plantilla para elaborar el formulario 300 para las declaraciones del IVA durante 2019"]
[]
[null,"[Guía] Inscripción de libros en las cámaras de comercio"]
[]
[null,"[Guía] Requisitos a verificar de la factura electrónica de venta antes de su emisión"]
[]
[null,"Formato exógena 1011, 1012 y 2275 por el año gravable 2018: reporte de otros datos en renta e IVA"]
[]
[null,"Categorías de informantes de exógena por el año gravable 2018 y los formatos que deben usar"]
[]
[null,"Formatos 2276 y 2280 para el reporte de información exógena de 2018"]
[]
[null,"Formato exógena 5253 por el año gravable 2018: información de los beneficiarios efectivos"]
[]
[null,"Formatos de exógena por el año gravable 2018: reportes de los mandatarios"]
[]
[null,"Formato exógena 1647 por el año gravable 2018: reporte de ingresos recibidos para terceros"]
[]
[null,"Formato exógena 1010 por el año gravable 2018: reporte de socios, cooperados o comuneros"]
[]
[null,"Formato exógena 1009 por el año gravable 2018: reporte de cuentas por pagar"]
[]
[null,"Formato exógena 1008 por el año gravable 2018: reporte de cuentas por cobrar"]
[]
[null,"Formato exógena 1004 de 2018: reporte de descuentos al impuesto de renta y ganancia ocasional"]
[]
[null,"[Guía] Comunicación de asuntos que generan amenazas a la independencia"]
[]
[null,"Formato exógena 1007 por el año gravable 2018: reportes de ingresos propios"]
[]
[null,"Formato exógena 1001 por el año gravable 2018: reporte de pagos o abonos en cuenta"]
[]
[null,"Formatos exógena 1005 y 1006 del año gravable 2018: reportes de IVA generados y descontables"]
[]
[null,"Formato exógena 1003 por el año gravable 2018: retenciones que le practicaron al informante"]
[]
[null,"[Guía] Devolución del IVA pagado en adquisición de materiales para construcción de VIS"]
[]
[null,"Listado de actividades económicas (códigos CIIU)"]
[]
[null,"[Guía] Notificación de la asignación de responsabilidad en el sistema de control de calidad"]
[]
[null,"[Lista de chequeo] Seguimiento de control de calidad en un encargo de auditoría bajo NICC 1"]
[]
[null,"Reglamentación para la declaración de renta de personas jurídicas por el año gravable 2018"]
[]
[null,"Formulario 110 y formato 2516 para declaración de renta o ingresos y patrimonio 2018"]
[]
[null,"Estructura general del Decreto único tributario 1625 de 2016"]
[]
[null,"Clasificación general de personas jurídicas frente al impuesto de renta por el año gravable 2018"]
[]
[null,"[Guía] Informe de entrega del cargo de contador externo al finalizar un contrato"]
[]
[null,"[Guía] Indicadores básicos para declaración de renta de personas jurídicas año gravable 2018"]
[]
[null,"[Guía] Lista de chequeo: estándares mínimos de seguridad para empresas grandes y medianas"]
[]
[null,"[Guía] Requisitos para acceder a beneficios de la economía naranja y desarrollo del campo colombiano"]
[]
[null,"[Guía] Lista de chequeo: estándares mínimos de seguridad para empresas medianas"]
[]
[null,"[Guía] Comunicación de deficiencias en el proceso de inspección del seguimiento del control de calidad"]
[]
[null,"[Guía] Lista de chequeo: estándares mínimos de seguridad para pequeñas empresas"]
[]
[null,"[Liquidador] Costo de renovación de matrícula mercantil y establecimientos de comercio en 2019"]
[]
[null,"[Contrato] Compraventa de un establecimiento de comercio"]
[]
[null,"Proyección del impuesto al patrimonio y cálculo del de normalización y/o saneamiento 2019"]
[]
[null,"[Guía] Modelo del certificado anual a socios o accionistas por el año 2018"]
[]
[null,"Cambios en la tributación sobre dividendos, luego de la Ley de financiamiento"]
[]
[null,"Depuración del impuesto de renta de personas jurídicas en el régimen ordinario 2018 vs. 2019"]
[]
[null,"Cambios en el impuesto de renta de las personas naturales luego de la Ley de financiamiento"]
[]
[null,"Comparativo entre la depuración de la renta en el régimen ordinario y en el régimen simple"]
[]
[null,"Propuesta para desarrollar un proyecto o proceso empresarial"]
[]
[null,"[Guía] Acta de entrega de normas de ética aplicables a encargos de auditoría"]
[]
[null,"Formulario 220: certificado por rentas de trabajo año gravable 2018"]
[]
[null,"[Formato] Solicitud de inmovilización de cesantías para adquisición de vivienda"]
[]
[null,"[Guía] Acta de entrega de manual de procedimientos y políticas de calidad"]
[]
[null,"[Liquidador] Impuesto de renta ordinario vs impuesto simple: ¿cuál es la decisión más conveniente?"]
[]
[null,"[Guía] Requisitos para acceder al subsidio de desempleo"]
[]
[null,"[Guía] Tarifas de autorretención especial en renta automatizado"]
[]
[null,"[Guía] Indicadores básicos para tener en cuenta durante 2019"]
[]
[null,"Novedades en clasificación de bienes y servicios frente a IVA e INC"]
[]
[null,"[Guía] Requisitos para pertenecer al régimen simple de tributación"]
[]
[null,"Porcentaje fijo y retención en la fuente con procedimiento 2 durante 2019 tras Ley de financiamiento"]
[]
[null,"Retención en la fuente con procedimiento 1 sobre rentas de trabajo 2019 tras Ley de financiamiento"]
[]
[null,"[Liquidador] Retención en la fuente con procedimiento 1 sobre rentas de trabajo durante 2019"]
[]
[null,"[Liquidador] Porcentaje fijo diciembre 2018 y junio 2019, y retención en la fuente con procedimiento 2 por 2019"]
[]
[null,"[Guía] Información laboral 2019"]
[]
[null,"Acuerdo de confidencialidad"]
[]
[null,"[Formato] Radicación de licencia de maternidad ante EPS al no cotizar todo el período de gestación"]
[]
[null,"[Guía] Tasa representativa del mercado -TRM- 2018"]
[]
[null,"[Guía] Matriz para definir casos en que las personas naturales son agentes de retención a título de renta"]
[]
[null,"Histórico de la variación nominal del salario mínimo vs. la inflación 1993 – 2018"]
[]
[null,"[Guía avanzada] Tablas de retención en la fuente a título de impuestos nacionales 2019"]
[]
[null,"[Guía] Tabla de retenciones en la fuente por renta para el año fiscal 2019"]
[]
[null,"[Calendario] Calendario tributario distrital 2019"]
[]
[null,"Matriz de cambios introducidos por la Ley de financiamiento 1943 de 2018"]
[]
[null,"Comparativo de normas afectadas por la Ley de financiamiento 1943 de diciembre 28 de 2018"]
[]
[null,"[Guía] Dictamen para empresas que aplican el Estándar Internacional para Pymes"]
[]
[null,"[Certificación] Certificado de ingresos por rendimientos financieros expedido por contador público"]
[]
[null,"[2019] Histórico de salario mínimo y auxilio de transporte"]
[]
[null,"Disminución de la base de retención por pagos a terceros por concepto de alimentación"]
[]
[null,"Carta deseando felices fiestas a empleados"]
[]
[null,"[Carta] Solicitud de aplicación de tarifa superior de retención en la fuente"]
[]
[null,"[Carta] Respuesta a solicitud de un servicio"]
[]
[null,"Equivalencias entre cuentas contables y formato de conciliación fiscal 2516"]
[]
[null,"[Carta] Anuncio de modificación a términos de descuento por pronto pago"]
[]
[null,"[Formato] Nota débito"]
[]
[null,"[Guía] Proveedores tecnológicos autorizados para prestar servicios de facturación electrónica"]
[]
[null,"[Certificado] Certificación para efectos de retención en la fuente de trabajador independiente"]
[]
[null,"[Carta] Carta otorgando poder"]
[]
[null,"Carta de terminación del contrato por dificultades económicas del empleador"]
[]
[null,"Solicitud de inversiones realizadas"]
[]
[null,"[Liquidador] Histórico de reajustes fiscales"]
[]
[null,"Demanda de nulidad y restablecimiento del derecho contra la Dian"]
[]
[null,"Solicitud de inversión de capital"]
[]
[null,"Recurso de reconsideración presentado ante la Dian"]
[]
[null,"[Guía] Modelo recurso de súplica – proceso laboral"]
[]
[null,"Carta de agradecimiento a empleador"]
[]
[null,"[Guía] Modelo recurso de queja – proceso laboral"]
[]
[null,"[Guía] Conceptos y orientaciones que abordan el tratamiento contable de los contratos de concesión"]
[]
[null,"[Carta] Ofrecimiento de disculpas a un cliente por la no prestación de un servicio"]
[]
[null,"[Guía] Acuerdo de terminación voluntaria del contrato de trabajo con bonificación por servicios prestados"]
[]
[null,"[Guía] Normas del Estatuto Tributario sobre el patrimonio y renta según obligación de llevar contabilidad"]
[]
[null,"Solicitud de empleo"]
[]
[null,"[Guía] Sistema de control de calidad aplicado a recursos humanos en un encargo de auditoría"]
[]
[null,"[Guía] Resoluciones y circulares para declaración de renta de personas naturales año gravable 2017"]
[]
[null,"[Guía] Modelo recurso de apelación – audiencia laboral"]
[]
[null,"[Guía] Decretos para la declaración de renta de personas naturales por el año gravable 2017"]
[]
[null,"Solicitud pago de acreencias laborales"]
[]
[null,"[Guía] Informe de un auditor sobre el diseño y la eficacia de los controles de la entidad"]
[]
[null,"[Guía] Personas naturales no residentes obligadas o no a declarar impuesto de renta"]
[]
[null,"Notificación de sanción disciplinaria"]
[]
[null,"[Guía] Tratamiento contable arrendamiento financiero con opción de compra"]
[]
[null,"[Guía] Residencia fiscal y sus implicaciones fiscales"]
[]
[null,"[Guía] Impuesto de renta y ganancia ocasional según residencia fiscal de la persona natural"]
[]
[null,"[Formato] Solicitud compensación de vacaciones"]
[]
[null,"[Guía] Política contable de arrendamientos para entidades de grupo 1"]
[]
[null,"[Guía] Requisitos para que persona natural quede exonerada de declarar renta por el año gravable 2017"]
[]
[null,"[Guía] Personas naturales obligadas o no a llevar contabilidad, e implicaciones contables y tributarias"]
[]
[null,"[Carta] Ofrecimiento de servicios de una empresa"]
[]
[null,"[Guía] Políticas contables en pymes para los intangibles"]
[]
[null,"Porcentaje fijo de retención en la fuente sobre salarios en junio de 2018 – Procedimiento 2"]
[]
[null,"Contestación de demanda – proceso ordinario laboral"]
[]
[null,"[Liquidador] Cálculo de la contribución 2018 a Supersociedades"]
[]
[null,"Conceptos que se someten o no a límites de rentas y deducciones especiales"]
[]
[null,"[Guía] Recurso de reposición – proceso laboral"]
[]
[null,"[Liquidador] Liquidador de vacaciones"]
[]
[null,"[Guía] Auditoría de nómina: informe de control interno"]
[]
[null,"[Poder] Poder de sustitución"]
[]
[null,"[Guía] Informe sobre los hallazgos obtenidos en las propiedades, planta y equipo"]
[]
[null,"Doctrinas de la Dian para tener en cuenta al elaborar declaración de renta personas naturales 2017"]
[]
[null,"Carta de bienvenida para un nuevo trabajador"]
[]
[null,"Depuración a efectuar dentro de las 5 cédulas de la declaración de renta de personas naturales"]
[]
[null,"Formulario 210 para declaración renta año gravable 2017 – obligados a llevar contabilidad"]
[]
[null,"[Carta] Solicitud de depósito de recursos a cuenta AFC para que no se practique retefuente"]
[]
[null,"Formulario 110 – declaración de renta 2017 de personas naturales obligadas a llevar contabilidad"]
[]
[null,"Notificación de no renovación de contrato laboral a término fijo"]
[]
[null,"[Guía] Retención en la fuente sobre prima de servicios: caso práctico"]
[]
[null,"Formulario 210 para declaración renta año gravable 2017 – no obligados a llevar contabilidad"]
[]
[null,"[Guía] Informe sobre los hallazgos obtenidos en las cuentas por cobrar en una pyme"]
[]
[null,"Beneficios tributarios por venta o herencia de bien inmueble"]
[]
[null,"[Guía] Declaración de renta año gravable 2017: indicadores y otros datos básicos para su elaboración"]
[]
[null,"Solicitud de licencia no remunerada"]
[]
[null,"[Liquidador] Cobro coactivo: conozca si la Dian debería levantar medida cautelar sobre un bien del contribuyente"]
[]
[null,"[Carta] Revocatoria de poder otorgado a un abogado"]
[]
[null,"Formulario 110 – declaración de renta 2017 de personas naturales no obligadas a llevar contabilidad"]
[]
[null,"[Guía] Rentas exentas y deducciones aplicables a cada cédula"]
[]
[null,"[Carta] Notificación de último cobro extrajudicial"]
[]
[null,"Carta de recomendación"]
[]
[null,"[Certificado] Cumplimiento de requisitos para solicitar permanencia en el régimen tributario especial"]
[]
[null,"Número de cuotas o pagos de un proyecto de financiación o inversión"]
[]
[null,"[Certificado] Antecedentes de directivos en entidades del régimen especial"]
[]
[null,"Cálculo de intereses pagados por un préstamo en un rango de tiempo determinado"]
[]
[null,"Plantilla para elaborar XML de formatos 1004, 1011 y 2275 para el año gravable 2017"]
[]
[null,"[Guía] Desistimiento de la acción de tutela"]
[]
[null,"Registro web de las entidades del régimen especial: trámites que debe realizar cada tipo de entidad"]
[]
[null,"[Liquidador] Abonos a capital realizados a un préstamo en un rango de tiempo"]
[]
[null,"[Guía] Reforma al acuerdo de reorganización"]
[]
[null,"Clasificación general de personas jurídicas en relación con el impuesto de renta por el 2017"]
[]
[null,"[Guía] Informe de revisión de estados financieros de una pyme conforme a la NIER 2400"]
[]
[null,"[Guía] Solicitud de normalización de acreencias"]
[]
[null,"[Guía] Normalización de acreencias incumplidas en proceso de reorganización"]
[]
[null,"[Guía] Levantamiento de medida cautelar en proceso de reorganización"]
[]
[null,"[Guía] Incorporación de procesos ejecutivos en proceso de reorganización empresarial"]
[]
[null,"[Guía] Remisión de documentos reunión de acreedores"]
[]
[null,"[Guía] Presentación de reforma de acuerdo de reorganización"]
[]
[null,"[Guía] Denuncia por incumplimiento de obligación de hacer en acuerdo de reorganización"]
[]
[null,"[Guía] Denuncia de incumplimiento de acuerdo de reestructuración"]
[]
[null,"[Certificación] Certificación trimestral de cumplimiento total de la Circular 156–000005 de 2011"]
[]
[null,"[Certificación] Oficio de cumplimiento de la Circular 156–000005 de 2011"]
[]
[null,"[Certificación] Certificación de cumplimiento de Circular 156–000005 de 2011"]
[]
[null,"Formatos exógena 1011, 1012 y 2275 por el año gravable 2017: reporte de otros datos en renta e IVA"]
[]
[null,"Formato exógena 1009 por el año gravable 2017: reporte de cuentas por pagar"]
[]
[null,"Formatos de exógena por el año gravable 2017: reportes de los mandatarios"]
[]
[null,"Formato exógena 1008 por el año gravable 2017: reporte de cuentas por cobrar"]
[]
[null,"Formato exógena 1007 por el año gravable 2017: reportes de ingresos propios"]
[]
[null,"Formatos exógena 1005 y 1006 por el año gravable 2017: reportes de IVA generados y descontables"]
[]
[null,"Formato exógena 1003 por el año gravable 2017: retenciones que le practicaron al informante"]
[]
[null,"Resumen de categorías de informantes de exógena por el año gravable 2017 y formatos que deben usar"]
[]
[null,"Formato exógena 1004 por 2017: reporte de descuentos al impuesto de renta y ganancia ocasional"]
[]
[null,"Formatos 2276, 2278 y 2280 para el reporte de información exógena por 2017"]
[]
[null,"Formato exógena 1647 por el año gravable 2017: reporte de ingresos recibidos para terceros"]
[]
[null,"Formato exógena 1010 por el año gravable 2017: reporte de socios, cooperados o comuneros"]
[]
[null,"Formato exógena 1001 por el año gravable 2017: reporte de pagos o abonos en cuenta"]
[]
[null,"[Guía] Reglamentación para la declaración de renta de personas jurídicas 2017"]
[]
[null,"Formulario 110 y formato 2516 para declaración de renta o ingresos y patrimonio 2017"]
[]
[null,"Arqueo de caja"]
[]
[null,"[Liquidador] Beneficio neto o excedente de las entidades del régimen tributario especial"]
[]
[null,"Liquidador básico de nómina"]
[]
[null,"[Certificación] Explotación de áreas comunes por copropiedades comerciales o mixtas"]
[]
[null,"[Certificación] Modelo certificación para que proceda descuento tributario por donación realizada"]
[]
[null,"Costo de renovación 2018 de matrícula mercantil y establecimientos de comercio"]
[]
[null,"Nivel de endeudamiento"]
[]
[null,"[Liquidador] Formulario 220 certificado por rentas de trabajo del año gravable 2017: ejemplo de asalariados"]
[]
[null,"[Guía] Testamento abierto o público cuando no hay hijos herederos"]
[]
[null,"[Liquidador] Aplicativo simulador y comparativo de créditos cuota fija"]
[]
[null,"[Calendario] Calendarios tributarios 2018 de los distritos y municipios principales de Colombia"]
[]
[null,"[Guía] Amparo de pobreza"]
[]
[null,"[Guía] Sanciones relacionadas con ICA, impuesto predial y de vehículos en Bogotá"]
[]
[null,"[Liquidador] Cálculo de tasa de interés efectiva implícita en una cuota"]
[]
[null,"[Poderes] Poder para adelantar sucesión ante Notaría"]
[]
[null,"[Liquidador] Conversión de tasas de interés"]
[]
[null,"[Calendario] Calendario tributario de Cali 2018"]
[]
[null,"[Calendario] Calendario tributario de Medellín 2018"]
[]
[null,"[Calendario] Calendarios tributarios de las tres principales ciudades de Colombia 2018"]
[]
[null,"[Guía] Escritura pública de disolución de sociedad comercial"]
[]
[null,"Plantilla para elaborar formulario 220 certificado por rentas de trabajo del año gravable 2017"]
[]
[null,"[Guía] Decretos reglamentarios de la Ley de reforma tributaria 1819 de 2016 expedidos a finales de 2017"]
[]
[null,"[Guía] Demanda para fijación de nuevo valor de arrendamiento de local comercial"]
[]
[null,"[Guía] Impuesto diferido aplicado a propiedades de inversión: caso práctico"]
[]
[null,"[Guía] Indicadores básicos a tener en cuenta en el 2018"]
[]
[null,"[Guía] Declaración de extinción de la obligación hipotecaria"]
[]
[null,"[Liquidador] Límite de pagos en efectivo a tener en cuenta para 2018"]
[]
[null,"[Guía] Demanda de cancelación y reposición de título valor contra entidad bancaria"]
[]
[null,"[Lista de chequeo] Revisión de control de calidad en un encargo de auditoría"]
[]
[null,"[Liquidador] Retención en la fuente con procedimiento 1 sobre rentas de trabajo durante el 2018"]
[]
[null,"[Contrato] Contrato de comodato"]
[]
[null,"[Lista de chequeo] Planeación de la ejecución de un encargo NICC 1"]
[]
[null,"[Guía] Tipos de términos de firmeza de las declaraciones tributarias"]
[]
[null,"[Guía] Información laboral 2018"]
[]
[null,"[2018] Histórico de salario mínimo y auxilio de transporte"]
[]
[null,"[Calendario] Calendario para personas naturales 2018"]
[]
[null,"[Calendario] Calendario tributario distrital 2018"]
[]
[null,"[Guía] Tasa representativa de mercado –TRM–"]
[]
[null,"Calendario tributario automatizado 2018"]
[]
[null,"Tabla de retenciones en la fuente por renta para año fiscal 2018"]
[]
[null,"[Calendario] Calendario tributario 2018"]
[]
[null,"[Guía] Modelo del certificado anual a socios y/o accionistas por el año 2017"]
[]
[null,"Porcentaje fijo de retención en la fuente sobre salarios en diciembre de 2017 – Procedimiento 2"]
[]
[null,"[Poder] Para constituir una sociedad anónima otorgado por persona jurídica extranjera"]
[]
[null,"[Carta] Independencia del revisor fiscal o auditor de la firma"]
[]
[null,"Categorías de informantes de exógena por el año gravable 2017 y formatos que deben usar"]
[]
[null,"[Guía] Demanda de restitución de bien inmueble arrendado – Local de comercio"]
[]
[null,"[Carta] Confirmación del auditor de un componente"]
[]
[null,"[Guía] Régimen simplificado del IVA y del impuesto al consumo: diferencias y similitudes"]
[]
[null,"[Guía] Persona natural, empresa unipersonal o SAS: características frente a obligaciones tributarias"]
[]
[null,"[Guía] Recurso de queja por denegar liquidación de crédito en proceso ejecutivo"]
[]
[null,"[Guía] Efecto del cálculo del valor residual en el estado de resultados"]
[]
[null,"[Guía] Casos de ganancia ocasional por venta de activos fijos depreciables"]
[]
[null,"[Poder] Solicitud de pruebas extraprocesales"]
[]
[null,"Conciliación contable y tributaria: casos de descuentos y deducciones (parte IV)"]
[]
[null,"Conciliación contable y tributaria: casos de descuentos tributarios"]
[]
[null,"Conciliación contable y tributaria: casos de descuentos y donaciones especiales"]
[]
[null,"Conciliación contable y tributaria: casos de deducciones especiales (parte III)"]
[]
[null,"[Guía] Demanda de proceso ejecutivo singular (letra de cambio)"]
[]
[null,"[Guía] Conciliación contable y tributaria: casos de costos y deducciones (parte II)"]
[]
[null,"[Guía] Descuentos tributarios para personas jurídicas y sus límites al momento de aplicarlos"]
[]
[null,"[Contrato] Distribución exclusiva"]
[]
[null,"Conciliación contable y tributaria: casos de costos y deducciones (parte I)"]
[]
[null,"[Guía] Formatos para acceder a exclusión de IVA en equipos en pro del medio ambiente"]
[]
[null,"[Contrato] Compromiso de fusión"]
[]
[null,"[Guía] Lista de chequeo: evidencia relativa a los controles en una organización de servicios"]
[]
[null,"[Guía] Zomac: listado automatizado de municipios pertenecientes a estas zonas"]
[]
[null,"[Guía] Convocatoria de integración de tribunal de arbitramento comercial"]
[]
[null,"[Guía] Beneficio en renta para sociedades ubicadas en Zomac: requisitos según el tamaño de la empresa"]
[]
[null,"[Acta] Acta final de arreglo directo"]
[]
[null,"[Contrato] Cesión de derechos litigiosos"]
[]
[null,"[Liquidador] Préstamo para vivienda: modalidad de cuota fija en pesos"]
[]
[null,"Cuenta de cobro para una persona que presta servicios en el régimen simplificado del IVA"]
[]
[null,"[Matriz] Renta líquida gravable por comparación patrimonial: cálculos para su determinación"]
[]
[null,"[Demanda] Levantamiento de fuero sindical"]
[]
[null,"[Carta] Carta de renuncia de revisor fiscal"]
[]
[null,"​[Guía] Requisitos para no estar obligado a declarar renta por el año gravable 2016"]
[]
[null,"[Guía] Patrimonio y rentas a declarar según la residencia fiscal del contribuyente"]
[]
[null,"[Guía] Demanda para iniciar proceso ejecutivo laboral"]
[]
[null,"[Guía] Conducta sancionable, ¿en qué consiste para efectos de liquidar sanción reducida?"]
[]
[null,"Contrato de outsourcing"]
[]
[null,"Contrato de trabajo a término indefinido de auxiliar contable"]
[]
[null,"[Guía] Convenios para evitar la doble tributación aplicables al año gravable 2016"]
[]
[null,"[Guía] Declaración de renta año gravable 2016: indicadores y otros datos básicos para su elaboración"]
[]
[null,"[Guía] Listado de códigos para diligenciar casilla 51 del RUT «ocupación» de personas naturales"]
[]
[null,"[Guía] Lista de chequeo de requisitos para obtener la tarjeta profesional de contador público"]
[]
[null,"[Matriz] Clasificación tributaria de una persona natural según el Concepto 885 de julio 31 de 2014"]
[]
[null,"[Formularios] Formulario de reclamos del usuario o cliente"]
[]
[null,"[Guía] Lista de chequeo de requisitos para la expedición de la tarjeta de registro de entidades"]
[]
[null,"​[Guía] Conducta sancionable, comisión de la misma conducta no permite liquidar sanción reducida"]
[]
[null,"Solicitud de licencia por luto"]
[]
[null,"[Carta] Modelo de circularización con compañías de seguros"]
[]
[null,"[Liquidador] Prorrateo de IVA comunes: hoja de trabajo con cálculos básicos"]
[]
[null,"[Guía] Personas naturales obligadas y no obligadas a llevar contabilidad"]
[]
[null,"[Certificación] Certificación laboral"]
[]
[null,"[Liquidador] Cálculo de la contribución 2017 a la Supersociedades"]
[]
[null,"[Guía] Lista de chequeo de revelaciones para microempresas"]
[]
[null,"​[Matriz] Clasificación tributaria de una persona natural según Decreto 3032 de 2013"]
[]
[null,"[Contrato] Transacción para terminar contrato de obra en propiedad horizontal"]
[]
[null,"Grados de apalancamiento financiero y operativo"]
[]
[null,"[Matriz] Residente para efectos fiscales"]
[]
[null,"Contrato de promesa de compraventa de carro o motocicleta"]
[]
[null,"Carta de interrupción de la prescripción de las acciones laborales"]
[]
[null,"[Guía] Tabla de equivalencias de términos sobre Normas Internacionales de Auditoría"]
[]
[null,"[Guía] Habilitación para expedir factura electrónica: proceso a seguir"]
[]
[null,"[Contrato] Contrato de obra para construcción"]
[]
[null,"Pasos que debe seguir el consumidor financiero para exponer una inconformidad"]
[]
[null,"[Guía] Términos a tener en cuenta en el trámite de solicitud de devolución de saldos a favor"]
[]
[null,"Contrato individual de obra"]
[]
[null,"Certificación revisor fiscal sobre pagos a seguridad social"]
[]
[null,"[Formato] Cuestionario de auditoría para área de sistemas"]
[]
[null,"​[Matriz] Cédula rentas de capital y su renta líquida según Concepto 5984 de marzo 17 de 2017"]
[]
[null,"[Formato] Cuestionario de auditoría para área de ventas"]
[]
[null,"Renta presuntiva y las novedades de la reforma tributaria en su determinación"]
[]
[null,"[Carta] Radicación de licencia de maternidad cuando no se cotizó todo el embarazo"]
[]
[null,"Cuestionario de auditoría para área de producción"]
[]
[null,"[Formato] Cuestionario de auditoría para el área de compras"]
[]
[null,"[Guía] Listado de relaciones de intercambio de información de cuentas financieras que tiene Colombia"]
[]
[null,"[Guía] Tasas: generalidades y conceptos"]
[]
[null,"Contribuyentes de monotributo ARL y valor a pagar por cada componente por 2017"]
[]
[null,"[Acta] Reclamación ante empresas de telefonía celular por reporte negativo a centrales de riesgo"]
[]
[null,"[Liquidador] Modelo para calcular cuota variable de un crédito con abonos a capital iguales"]
[]
[null,"Intereses moratorios sobre deudas tributarias luego de la Ley 1819 de 2016"]
[]
[null,"[Matriz] Costo fiscal de propiedad, planta y equipo y propiedades de inversión, ¿cómo determinarlo?"]
[]
[null,"Formularios 210 y 230 con anexos para declaración de renta año gravable 2016"]
[]
[null,"​Formularios 110 y 240 con anexos para declaración de renta año gravable 2016"]
[]
[null,"​ Modelo para proyectar efectos de IMAN e IMAS en declaraciones de renta 2016 de empleados"]
[]
[null,"Clasificación tributaria de las personas naturales y sucesiones ilíquidas por el año 2016"]
[]
[null,"​ Modelo para proyectar efectos de IMAS por 2016 de trabajadores por cuenta propia"]
[]
[null,"[Guía] Manifestación sobre las pruebas de cumplimiento y sustantivas en informe de control interno"]
[]
[null,"[Guía] Contribuyentes de monotributo BEPS y valor a pagar por cada componente"]
[]
[null,"[Acta] Aprobación de disolución de sociedad de responsabilidad limitada"]
[]
[null,"[Acta] Acta de junta para transformación de SA a SAS"]
[]
[null,"[Certificación] Requisitos para acceder a beneficios en registro mercantil de la Ley Projoven"]
[]
[null," Porcentaje fijo de retención en la fuente sobre salarios en junio de 2017 – Procedimiento 2"]
[]
[null,"[Guía] Manifestación sobre la evaluación del control interno"]
[]
[null,"[Acta] Acta de junta para transformación de Ltda a SAS"]
[]
[null,"[Carta] Reclamación por garantías sobre bienes o servicios"]
[]
[null,"Manifestación de temas a tratar en informes de control interno"]
[]
[null,"Retefuente con procedimiento 1 para quienes perciban rentas de trabajo"]
[]
[null,"[Guía] Régimen tributario especial: información que debe contener el registro de inscripción"]
[]
[null,"​ Formulario 300 para declaraciones de IVA bimestrales y/o cuatrimestrales durante 2017"]
[]
[null,"[Contrato] Escrituras de venta de inmueble que no está ubicado en propiedad horizontal"]
[]
[null,"[Contrato] Escrituras de venta de inmueble ubicado en propiedad horizontal"]
[]
[null,"[Guía] Medición de inversiones según Estándar Internacional para grupo 1 y Pymes"]
[]
[null,"[Guía] Información requerida para agendar cita en la DIAN"]
[]
[null,"[Guía] Elementos conceptuales para informe de control interno"]
[]
[null,"[Guía] Modelo de manifestación de la gerencia dirigida a la revisoría fiscal"]
[]
[null,"Formato 1003 por 2016: reportes de retenciones que le practicaron a la persona o entidad informante"]
[]
[null,"Formato 1009 por 2016: reportes de cuentas por pagar"]
[]
[null,"Formato 1004 por 2016: reporte de descuentos al impuesto de renta o de ganancia ocasional"]
[]
[null,"Formato 1647 por 2016: reportes de ingresos recibidos para terceros"]
[]
[null,"Formato 1007 por 2016: reportes de ingresos propios"]
[]
[null,"Formato 1001 por 2016: reportes de pagos o abonos en cuenta y sus retenciones a terceros"]
[]
[null,"Formatos 2276, 2278 y 2280 para el reporte de información exógena por 2016"]
[]
[null,"Formatos 1005 y 1006 por 2016: reportes de IVA generados y descontables"]
[]
[null,"Formato 1010 por 2016: reportes de socios, cooperados o comuneros"]
[]
[null,"Formato 1008 por 2016: reportes de cuentas por cobrar"]
[]
[null,"[Guía] Incentivos de la reforma tributaria que fueron reglamentados a nivel territorial"]
[]
[null,"Formatos 1011, 1012 y 2275 por 2016: reportes de otros datos en renta o en ingresos y patrimonio"]
[]
[null,"[Contrato] Solicitud al banco de cheques originales pagados"]
[]
[null,"[Contrato] Convenio de pago o acuerdo de pago"]
[]
[null,"[Guía] Dictamen de la revisoría fiscal para una empresa del Grupo 2 por el año 2016"]
[]
[null,"[Guía] Matriz para definir si pertenece al régimen simplificado del IVA"]
[]
[null,"[Contrato] Contrato de depósito"]
[]
[null,"[Guía] Matriz para definir si pertenece al régimen simplificado del impuesto nacional al consumo"]
[]
[null,"[Contrato] Distribución de productos"]
[]
[null,"[Contrato] Arrendamiento de oficina, local o bodega"]
[]
[null,"[Guía] Modelo de certificación de Estados Financieros (versión extendida)"]
[]
[null,"[Guía] Cambios en conceptos de exógena para reportar descuentos tributarios solicitados"]
[]
[null,"Formularios 110 y 140 y formato 1732 para personas jurídicas por año gravable 2016"]
[]
[null,"Derecho de petición de interés particular contra empresa de servicios públicos -ESP-"]
[]
[null,"[Guía] Política contable sobre moneda funcional y transacciones en moneda extranjera para Pymes"]
[]
[null,"Plantilla para elaborar borrador de formulario 350 de marzo de 2017 en adelante"]
[]
[null,"[Guía] Nuevos conceptos de exógena para reportar ingresos por operaciones con IVA"]
[]
[null,"[Acta] Reunión de junta directiva"]
[]
[null,"[Acta] Autorización de aumento del capital"]
[]
[null,"[Guía] Cambios en conceptos de exógena para reportar valores de costos y deducciones"]
[]
[null,"[Acta] Iniciación de arreglo directo"]
[]
[null,"[Guía] Modelo informe del Revisor Fiscal con ISAE"]
[]
[null,"[Guía] Modelo de Informe de Control Interno"]
[]
[null,"[Guía] Cambios en los conceptos de exógena para reportar valores de rentas exentas"]
[]
[null,"Calendario Tributario 2017 automatizado"]
[]
[null,"[Liquidador] Matrícula Mercantil y establecimientos de comercio: costo de renovación año 2017"]
[]
[null,"[Guía] Cambios en los conceptos para reportar ingresos no constitutivos de renta ni ganancia ocasional"]
[]
[null,"[Guía] Convocatoria junta de socios o asamblea general extraordinaria"]
[]
[null,"[Guía] Síntesis de las modificaciones de la Ley 1819 de 2016 a rentas exentas del artículo 207-2"]
[]
[null,"Plantilla para elaborar Formulario 220 certificado de ingresos y retenciones a empleados año gravable 2016"]
[]
[null,"[Guía] Políticas contables más significativas en Pymes"]
[]
[null,"[Formato] Comprobante de préstamos sobre salarios"]
[]
[null,"​​[Guía] Nota 2: base de preparación de Estados Financieros bajo el Estándar Internacional para Pymes"]
[]
[null,"[Formato] Allanamiento a las pretensiones de la demanda"]
[]
[null,"​ Cálculo de retención sobre dividendos de 2016, anteriores, de 2017 y siguientes"]
[]
[null,"[Formato] Demanda de divorcio de matrimonio civil"]
[]
[null,"[Guía] Nota 1 a los Estados Financieros bajo el Estándar Internacional para Pymes"]
[]
[null,"Cuadro temático con los cambios introducidos por la Ley de reforma tributaria 1819 de 2016"]
[]
[null,"[Guía] Matriz para clasificar empresas que inicien actividades en ZOMAC y tarifa en renta a aplicar por 2017"]
[]
[null,"[Formato] Cesión de derechos hereditarios"]
[]
[null,"[Formato] Tabla de retención en la fuente sobre ingresos laborales"]
[]
[null,"[Guía] Matriz para determinar valor de excesos de renta presuntiva y de base mínima a compensar"]
[]
[null,"[Guía] Matriz para determinar valor de pérdidas fiscales susceptibles de compensación según reforma"]
[]
[null,"[Guía] Información laboral 2017"]
[]
[null,"[Formato] Poder especial para adelantar proceso ejecutivo"]
[]
[null,"[Liquidador] Sobretasa del impuesto de renta y complementario de personas jurídicas"]
[]
[null,"[Guía] Matriz para definir periodicidad de declaración y pago de IVA en 2017 según reforma tributaria 2016"]
[]
[null,"[Formato] Liquidador de seguridad social y provisión de prestaciones sociales para servicio doméstico"]
[]
[null,"Listado de bienes y servicios cuya clasificación frente al IVA fue modificada con la Ley 1819"]
[]
[null,"Tablas de retención en la fuente a título de los impuestos nacionales durante el año fiscal 2017"]
[]
[null,"Gravamen progresivo en impuesto de renta de personas naturales"]
[]
[null,"​[Guía] Matriz para definir quién puede acogerse al Monotributo por el año 2017 según reforma tributaria"]
[]
[null,"[Guía] Matriz para definir categoría en Monotributo y valor a pagar en 2017 según reforma tributaria 2016"]
[]
[null,"[Formato] Poder especial otorgado por representante legal de persona jurídica"]
[]
[null,"[Guía] Tabla de retenciones en la fuente por renta año fiscal 2017"]
[]
[null,"[Calendario] Calendario tributario distrital 2017"]
[]
[null,"[Formato] Cédula de control para valoración de riesgos en compras"]
[]
[null,"[Guía] Matriz para definir categoría en Monotributo y valor a pagar en 2017 según reforma tributaria"]
[]
[null,"[Formato] Modelo de inventario de entrega de inmueble"]
[]
[null,"[Guía] Lista de chequeo de revelaciones Sección 28: beneficios a los empleados"]
[]
[null,"​[Guía] Matriz para definir la periodicidad de declaración y pago del IVA en 2017 según reforma tributaria"]
[]
[null,"[Guía] Lista de chequeo de revelaciones Sección 27: deterioro del valor de los activos"]
[]
[null,"[Guía] Matriz para definir obligados a declarar renta según reforma tributaria aprobada en primer debate"]
[]
[null,"Modelo para definir porcentaje fijo de retefuente sobre salarios en diciembre 2016 – Procedimiento 2"]
[]
[null,"[Formato] Modelo de carta para solicitar a la empresa de servicios públicos la suspensión del contrato de telefonía e internet"]
[]
[null,"[Guía] Lista de chequeo de revelaciones Sección 26: pagos basados en acciones"]
[]
[null,"[Calendario] Calendario tributario 2017"]
[]
[null,"[Acta] Modelo para otorgar poder de representación ante una junta de socios o asamblea de accionistas"]
[]
[null,"[Guía] Lista de chequeo de revelaciones Sección 24: subvenciones del gobierno"]
[]
[null,"[Guía] Matriz para definir si puede acogerse al Monotributo por el año 2017 según proyecto reforma tributaria"]
[]
[null,"[Autorización] Formato autorización permiso de salida del país para menores"]
[]
[null,"[Guía] Lista de chequeo de revelaciones Sección 23: ingresos de actividades ordinarias"]
[]
[null,"[Guía] Matriz para definir obligados a declarar renta por el 2017 según proyecto reforma tributaria"]
[]
[null,"[Formato] Incidente de desacato de Acción de Tutela"]
[]
[null,"[Guía] Lista de chequeo de revelaciones Sección 21: Provisiones y contingencias"]
[]
[null,"[Liquidador] Cálculos para determinar valores susceptibles de ser compensados"]
[]
[null,"[Poder] Representación ante la Superintendencia de Sociedades"]
[]
[null,"[Liquidador] Tarifas en impuesto y sobretasa en renta para empresas editoriales según proyecto de reforma"]
[]
[null,"[Guía] Matriz para determinar el valor de las pérdidas fiscales susceptibles de ser compensadas"]
[]
[null,"Impuesto de renta de persona natural según proyecto de reforma tributaria"]
[]
[null,"[Liquidador] Tablas de gravamen progresivo en impuesto y retención por renta de personas naturales"]
[]
[null,"[Guía] Estatuto Tributario concordado con el Proyecto de Ley de Reforma Tributaria"]
[]
[null,"[Guía] Dictamen de modelo (limpio o sin salvedades) del revisor fiscal"]
[]
[null,"[Guía] Lista de Chequeo de Revelaciones Sección 20: Arrendamientos"]
[]
[null,"[Guía] Estructura general del Proyecto Ley Reforma Tributaria Estructural"]
[]
[null,"Contrato de trabajo con salario integral"]
[]
[null,"[Guía] Matriz para establecer cumplimiento de criterios para ser calificado como Gran Contribuyente"]
[]
[null,"ESFA y Estados financieros 2015 y 2016: Caso práctico"]
[]
[null,"[Guía] Matriz para definir la periodicidad para declarar y pagar la autorretención del CREE"]
[]
[null,"Aplicación del Estándar para Pymes por representante legal y contador"]
[]
[null,"[Guía] Matriz para definir la periodicidad de declaración y pago del impuesto sobre las ventas"]
[]
[null,"[Guía] Informe de directivos: Aplicación de los Estándares Internacionales – Grupo 2"]
[]
[null,"[Formato] “Especificaciones de los servicios” para acceder a incentivos de la Ley 1715 del 2014"]
[]
[null,"[Acta] Reglamento para la emisión de acciones"]
[]
[null,"[Formato] “Especificaciones del elemento, equipo y/o maquinaria” para acceder a incentivos de la Ley 1715"]
[]
[null,"Modelo de contrato laboral de servicio doméstico"]
[]
[null,"[Acta] Certificación de deuda o constitución de título ejecutivo para cobro judicial en PH"]
[]
[null,"[Acta] Disolución de una sociedad"]
[]
[null,"[Formato] Formato único de solicitud de certificación de beneficios ambientales"]
[]
[null,"[Guía] Cuadro sinóptico de la generación del IVA en operaciones con empresas en zonas francas"]
[]
[null,"[Acta] Modelos de autorización para obtener, renovar o cancelar la firma digital"]
[]
[null,"[Formato] Modelo de memorial para solicitarle al juez librar medida cautelar"]
[]
[null,"[Acta] Modelo de reclamación por garantía"]
[]
[null,"[Acta] Formato de quejas y reclamos"]
[]
[null,"[Acta] Acta de reunión de Junta Directiva"]
[]
[null,"[Guía] Matriz para definir el sistema mediante el cual puede declarar un trabajador por cuenta propia"]
[]
[null,"Modelo de acción de tutela para reclamar incapacidades"]
[]
[null,"[Acta] Acta de Junta Directiva para autorizar al Gerente a suscribir contratos"]
[]
[null,"[Guía] Modelo de política contable para el valor residual"]
[]
[null,"[Acta] Modelo de comprobante de pago con caja menor"]
[]
[null,"Matriz para definir el sistema mediante el cual puede declarar un empleado por el año gravable 2015"]
[]
[null,"[Acta] Modelo de circularización con abogados"]
[]
[null,"[Liquidador] Cuota mensual en el pago de una obligación financiera"]
[]
[null,"[Liquidador] Flujo de caja especial para una microempresa"]
[]
[null,"[Liquidador] Modelo para solicitud de reembolso de caja menor"]
[]
[null,"[Guía] Matriz para definir si una persona natural está obligada a declarar renta por el 2015"]
[]
[null,"[Poder] Poder de representación en asamblea/junta general de asociados"]
[]
[null,"[Convocatoria] Segunda convocatoria a asamblea general ordinaria de socios/accionistas"]
[]
[null,"[Guía] Modelo simple de programa de auditoría a inversiones en pymes"]
[]
[null,"[Acta] Modelo de acta para nombramiento de junta directiva y/o revisor fiscal"]
[]
[null,"[Liquidador] Herramienta calculadora de tarifas en la Contaduría Pública"]
[]
[null,"[Guía] Modelo para la aprobación de políticas contables para entidades del sector público (Resolución 414)"]
[]
[null,"Matriz para definir contribuyentes no obligados a presentar declaración de renta"]
[]
[null,"[Guía] Servicios y contratos en los cuales se puede aplicar AIU"]
[]
[null,"[Guía] Lista de Chequeo de Revelaciones Sección 19: combinaciones de negocio y plusvalía"]
[]
[null,"[Liquidador] Modelo para el cálculo de la «sanción por corrección» en una declaración de renta"]
[]
[null,"[Guía] Navegación en el marco normativo de las NAI"]
[]
[null,"[Guía] Lista de Chequeo de Revelaciones Sección 17: propiedades, planta y equipo"]
[]
[null,"[Guía] Diferencias en la declaración de renta de personas naturales obligadas o no a llevar contabilidad"]
[]
[null,"Modelo de renuncia por falta de pago de salarios"]
[]
[null,"[Formato] Carta de compromiso de auditoría bajo NIA"]
[]
[null,"[Guía] Lista de Chequeo de Revelaciones Sección 16: propiedades de inversión"]
[]
[null,"Beneficios tributarios por vinculación laboral de personas con condiciones especiales"]
[]
[null,"Formato de solicitud de licencia de calamidad doméstica"]
[]
[null,"[Guía] Lista de Chequeo de Revelaciones Sección 12: otros temas relacionados con los instrumentos financieros"]
[]
[null,"Documentos necesarios para elaborar la declaración de renta de personas naturales año gravable 2015"]
[]
[null,"Formato “otro sí” para modificar promesa de compraventa"]
[]
[null,"[Guía] Lista de Chequeo de Revelaciones Sección 18: activos intangibles distintos de la plusvalía"]
[]
[null,"[Certificado] Modelo del certificado anual a socios y/o accionistas por el año gravable 2015"]
[]
[null,"[Poderes] Poder especial para el trámite de solicitud de reconocimiento y pago de la pensión de sobrevivencia"]
[]
[null,"[Guía] Lista de Chequeo de Revelaciones Sección 10: políticas contables, estimaciones y errores"]
[]
[null,"[Liquidador] IMAS en el impuesto de renta de los trabajadores por cuenta propia: modelo para proyectar efectos 2015"]
[]
[null,"[Reclamaciones] Reclamación directa contra proveedor o productor"]
[]
[null,"[Guía] Lista de Chequeo de Revelaciones Sección 11: instrumentos financieros básicos"]
[]
[null,"[Liquidador] IMAN e IMAS en el impuesto de renta para empleados: modelo para proyectar efectos 2015"]
[]
[null,"[Carta] Solicitud de autorización para venta de propiedad de un menor de edad"]
[]
[null,"[Guía] Lista de Chequeo de Revelaciones Sección 7: Estado de Flujos de Efectivo"]
[]
[null,"Cálculo de la contribución 2016 a la Supersociedades"]
[]
[null,"Formularios 210 y 230 con anexos para la declaración de renta de personas naturales año gravable 2015"]
[]
[null,"[Guía] Lista de Chequeo de Revelaciones Sección 5: Estado de Resultado Integral y Estado de Resultados"]
[]
[null,"[Liquidador avanzado] ​Formularios 110 y 240 con anexos para la declaración de renta año gravable 2015"]
[]
[null,"[Guía] Lista de Chequeo de Revelaciones Sección 4: Estado de Situación Financiera"]
[]
[null,"[Liquidador básico] Formulario 210 Declaración de Renta Personas Naturales y Sucesiones ilíquidas año gravable 2015"]
[]
[null,"[Guía] Clasificación tributaria de personas naturales y sucesiones ilíquidas frente al impuesto de renta por el año gravable 2015"]
[]
[null,"Derecho de petición para solicitar documentos a exempleador"]
[]
[null,"[Guía] Lista de chequeo de revelaciones Sección 3: presentación de Estados Financieros"]
[]
[null,"Cálculo de la sanción por extemporaneidad después del emplazamiento por no declarar"]
[]
[null,"Acta de Asamblea General para aprobación de estados financieros 2015 en entidad del Grupo 1"]
[]
[null,"Modelo para definir porcentaje fijo de retención en la Fuente sobre salarios en junio del 2016 – Procedimiento 2"]
[]
[null,"Modelo básico para proyectar el impuesto a la riqueza 2015 a 2018 y su complementario de normalización tributaria"]
[]
[null,"Contrato individual de trabajo a término fijo"]
[]
[null,"[Guía] Lista de chequeo de revelaciones: NIC 38 Activos intangibles"]
[]
[null,"Cálculo de intereses presuntivos por préstamos en dinero a socios durante el 2015"]
[]
[null,"Contrato individual de trabajo a término indefinido"]
[]
[null,"[Guía] Lista de chequeo de revelaciones: NIC 36 Deterioro del valor de los activos"]
[]
[null,"[Contrato] Finalización del contrato por parte del arrendatario por vencimiento del contrato"]
[]
[null,"[Guía] Lista de chequeo de revelaciones: NIC 26 – Contabilización e información financiera sobre planes de beneficio por retiro"]
[]
[null,"Cálculo de la sanción por extemporaneidad antes del emplazamiento"]
[]
[null,"[Acta] Acta de nombramiento del Vigía en Seguridad y Salud en el Trabajo"]
[]
[null,"[Guía] Normatividad aplicable a los impuestos de renta, CREE y riqueza contenida en la Ley 1739 del 2014"]
[]
[null,"[Formato] Formato para presentar quejas sobre situaciones que puedan constituir acoso laboral"]
[]
[null,"Hoja de trabajo para el control de activos fijos"]
[]
[null,"[Guía] Plantilla para elaborar el Informe de Prácticas Empresariales por el 2015"]
[]
[null,"[Guía] Generación del IVA en operaciones con empresas en zonas francas"]
[]
[null,"[Guía] Certificado por Retención en la Fuente a título del impuesto de Timbre"]
[]
[null,"[Autorización] Autorización de salida de bienes por finalización del contrato de arrendamiento – Propiedad Horizontal"]
[]
[null,"Proyección de descuentos en Renta, CREE y Sobretasa al CREE por impuestos pagados en el exterior"]
[]
[null,"Cuentas a reportar en los formatos de información exógena año gravable 2015"]
[]
[null,"[Guía] Clasificación de las personas jurídicas en el impuesto de Renta y CREE del año gravable 2015"]
[]
[null,"[Guía] Plantilla de Estados Financieros 2015 bajo Estándares Internacionales Plenos para Supersociedades con XBRL Express"]
[]
[null,"[Liquidador] Impuesto a la riqueza: cálculo valor patrimonial neto para acciones poseídas de forma indirecta en sociedades nacionales"]
[]
[null,"​[Calendario] Calendario tributario automatizado para el 2016"]
[]
[null,"[Liquidador] Efectos de las ventas de activos fijos depreciables que constituyen ganancia ocasional"]
[]
[null,"[Guía] Categorías de informantes de exógena por el año gravable 2015 y formatos a utilizar"]
[]
[null,"[Liquidador] Depuración del Impuesto de Renta año gravable 2015 para copropiedades que explotan áreas comunes"]
[]
[null,"[Guía] Cálculo de intereses de mora sobre obligaciones tributarias"]
[]
[null,"[Formato] Formato 2278: información de compras a terceros de bonos, vales y otros documentos para pagos a trabajadores en el 2015"]
[]
[null,"Formato 2280: deducción en el 2015 por empleadas víctimas de la violencia"]
[]
[null,"Poder especial para compraventa de inmueble"]
[]
[null,"[Guía] Simulación del Sistema de Registro de Diferencias"]
[]
[null,"[Liquidador] Cálculo de deducción en renta por inversiones en proyectos de investigación tecnológica"]
[]
[null,"[Citación] Citación a descargos en la Propiedad Horizontal"]
[]
[null,"[Formato] Certificación de estados financieros año 2015 a entregar a la Supersociedades"]
[]
[null,"Formulario 220: certificación de pagos y retenciones a empleados por el año gravable 2015"]
[]
[null,"Promesa de compraventa de apartamento con usufructo para cancelar"]
[]
[null,"[Formato] Dictamen Revisoría Fiscal (auditoría externa) con Estándares Internacionales"]
[]
[null,"[Formato] Formatos 1005 y 1006: reporte de IVA descontables, e IVA e INC generados en el 2015"]
[]
[null,"[Formato] Formatos 1011, 1012 y 2275: reportes de otros datos de la declaración de Renta o de Ingresos y Patrimonio del 2015"]
[]
[null,"Formato 1004: reporte de los descuentos al impuesto de Renta o de Ganancia Ocasional en el 2015"]
[]
[null,"[Formato] Formato 1010: reporte de socios, cooperados o comuneros a diciembre 31 del 2015"]
[]
[null,"[Formato] Formatos 1016, 1017, 1018, 1027, 1054 y 1055: reportes de los mandatarios en contratos de mandato año gravable 2015"]
[]
[null,"Formularios 110 y 140 con anexos y formato 1732 año gravable 2015"]
[]
[null,"[Certificado] Participación patrimonial anual a socios y/o accionistas por el 2015"]
[]
[null,"Formato 1009: reporte de cuentas por pagar a diciembre 31 del 2015"]
[]
[null,"Formato 1008: reporte de cuentas por cobrar a diciembre 31 del 2015"]
[]
[null,"Convocatoria para Asamblea General de Copropietarios"]
[]
[null,"Formato 2276: información de los certificados de ingresos y retenciones a empleados año 2015"]
[]
[null,"Formato 1007: información de ingresos propios recibidos durante el 2015"]
[]
[null,"Formato 1001: información de pagos o causaciones a terceros durante el 2015 y las retenciones practicadas o asumidas sobre los mismos. Caso 1"]
[]
[null,"Formato 1001: información de pagos o causaciones a terceros durante el 2015 y las retenciones practicadas o asumidas sobre los mismos. Caso 2"]
[]
[null,"Formato 1647: reportes de ingresos recibidos (facturados) para terceros durante el 2015"]
[]
[null,"Formato 1003: reportes de retenciones que le practicaron a la persona o entidad informante durante el 2015"]
[]
[null,"[Carta] Carta de finalización del contrato individual de trabajo por pensión del trabajador"]
[]
[null,"[Guía] Plantilla de estados financieros 2015 bajo Estándares Internacionales para Supersociedades con XBRL Express"]
[]
[null,"[Guía] Cierre contable: proceso de verificación de la información del 2015"]
[]
[null,"[Calendario] Declaración anual del Impuesto de Industria y Comercio en Cali"]
[]
[null,"[Calendario] Calendario Tributario para Personas Naturales"]
[]
[null,"[Guía] Tabla de recargos y aportes para salario mínimo 2016"]
[]
[null,"[Liquidador] Costo de renovación de la Matrícula Mercantil para el 2016"]
[]
[null,"Sanción por extemporaneidad en declaración del Régimen Simplificado del Impuesto al Consumo"]
[]
[null,"[Poder] Otorgamiento de poder para cancelar línea telefónica"]
[]
[null,"[Guía] Cuestionario para la revisión y evaluación de los saldos, movimientos y el control de las cuentas de caja y bancos"]
[]
[null,"[Guía] Lista de chequeo de revelaciones: NIC 26 − Planes de beneficio por retiro"]
[]
[null,"[Guía] Requisitos para pertenecer al régimen simplificado del IVA en el 2016"]
[]
[null,"[Contrato] Contrato de compraventa de vehículo automotor (automóvil o motocicleta)"]
[]
[null,"[Guía] Indicadores básicos para tener en cuenta en el 2016"]
[]
[null,"[Guía] Lista de chequeo de revelaciones: NIC 23 costos por préstamos y NIC 24 partes relacionadas"]
[]
[null,"Parámetros claves en la elaboración de declaraciones tributarias durante el año 2016"]
[]
[null,"[Guía] Tarifas de la autorretención del CREE"]
[]
[null,"[Guía] Información laboral 2016"]
[]
[null,"[Calendario] Calendario Tributario de Bogotá D.C."]
[]
[null,"Ejercicios de conversión: caso práctico para la elaboración del ESFA en pymes"]
[]
[null,"[Guía] Tabla de retenciones en la fuente por renta año fiscal 2016"]
[]
[null,"[Guía] Cuestionario para la revisión y evaluación del Sistema de Control Interno"]
[]
[null,"[Guía] Lista de chequeo de revelaciones: NIC 21 -Efectos de las variaciones en las tasas de cambio de la moneda extranjera"]
[]
[null,"[Formato] Auditoría de conciliaciones bancarias"]
[]
[null,"[Guía] Lista de chequeo de revelaciones: NIC 19 -Beneficios a los empleados"]
[]
[null,"[Contrato] Modelo de contrato de corretaje inmobiliario"]
[]
[null,"[Calendario] Calendario Tributario 2016"]
[]
[null,"[Guía] Lista de chequeo de revelaciones: NIC 18 – Ingresos de actividades ordinarias"]
[]
[null,"Retención en la fuente con procedimiento 1 para asalariados y demás empleados durante el 2016"]
[]
[null,"[Carta] Autorización para desocupar inmueble por finalización del contrato de arrendamiento –PH"]
[]
[null,"[Formato] Auditoría del disponible"]
[]
[null,"Ejercicio de conciliación entre el resultado contable y los resultados fiscales"]
[]
[null,"Retención en la fuente con procedimiento 2 para determinar porcentaje en diciembre de 2015"]
[]
[null,"[Acta] Constitución y Posesión de miembros del Comité Paritario de Seguridad y Salud en el Trabajo"]
[]
[null,"[Guía] Lista de chequeo de revelaciones: NIC 17 – Arrendamientos"]
[]
[null,"[Guía] Normatividad reglamentaria del impuesto a la riqueza y su complementario"]
[]
[null,"[Guía] Básica de Trabajo: Auxilio de transporte y dotación"]
[]
[null,"[Guía] Exógena: Estructura final del contenido de la Resolución DIAN 000220 de octubre 31 del 2014"]
[]
[null,"[Guía] Normatividad reglamentaria del Impuesto Nacional al Consumo"]
[]
[null,"[Guía] Básica de Trabajo: Incapacidad"]
[]
[null,"[Guía] Documento de Orientación Técnica 015. Copropiedades de Uso Residencial o Mixto (Grupo 1, 2 y 3)"]
[]
[null,"[Guía] Documento de Orientación Técnica 014. Entidades Sin Ánimo de Lucro"]
[]
[null,"[Guía] Documentos de Orientación Pedagógica para la aplicación de las NIIF, NIF y NAI"]
[]
[null,"[Guía] Documentos sobre Combinaciones de Negocios. Orientaciones Técnicas 010 y 011 del CTCP"]
[]
[null,"[Guía] Documentos sobre Activos y Pasivos Financieros. Orientaciones Técnicas 008 y 009 del CTCP"]
[]
[null,"[Guía] Documentos de Regulación sobre Propiedades, Planta y Equipos. Orientaciones Técnicas 006 y 007 del CTCP"]
[]
[null,"[Guía] Documentos de Adopción por primera vez. Orientaciones Técnicas 004 y 005 del CTCP"]
[]
[null,"[Guía] Documentos de Marco Conceptual. Orientaciones Técnicas 002 y 003 del CTCP"]
[]
[null,"[Guía] Documento de Orientación Técnica 001. Contabilidad bajo los nuevos marcos técnicos normativos"]
[]
[null,"[Guía] Estructura del contenido de la Resolución DIAN 112 de octubre 29 del 2015"]
[]
[null,"[Guía] Normatividad reglamentaria del CREE"]
[]
[null,"[Guía] Básica de Trabajo: acoso laboral"]
[]
[null,"[Formato] Planilla de Circularizaciones"]
[]
[null,"[Guía] Lista de chequeo de revelaciones: NIC 16 -Propiedades, Planta y Equipo"]
[]
[null,"[Guía] Obligaciones Tributarias de los Consorcios y Uniones Temporales"]
[]
[null,"[Guía] Básica de Trabajo: salario y jornada laboral"]
[]
[null,"[Guía] Lista de chequeo de revelaciones: NIC 12 – Impuesto a las Ganancias"]
[]
[null,"[Guía] Doctrinas de la DIAN sobre el CREE"]
[]
[null,"[Guía] Atención Integral en Seguridad y Salud en el Trabajo 2015 – Hipocausia neurosensorial inducida por ruido u ototóxicos"]
[]
[null,"[Guía] Atención Integral en Seguridad y Salud en el Trabajo 2015 – Bencenos y sus derivados"]
[]
[null,"[Guía] Atención Integral en Seguridad y Salud en el Trabajo 2015 – Trabajadores expuestos a organofosforados o carbamatos"]
[]
[null,"[Guía] Atención Integral en Seguridad y Salud en el Trabajo 2015 – Neumoconiosis"]
[]
[null,"[Guía] Atención Integral en Seguridad y Salud en el Trabajo 2015 – Hombro doloroso"]
[]
[null,"[Guía] Atención Integral en Seguridad y Salud en el Trabajo 2015 – Dermatitis de origen ocupacional"]
[]
[null,"[Guía] Atención Integral en Seguridad y Salud en el Trabajo 2015 – Cáncer de pulmón de origen ocupacional"]
[]
[null,"[Guía] Atención Integral en Seguridad y Salud en el Trabajo 2015 – Asma de origen ocupacional"]
[]
[null,"[Guía] Contratación del servicio doméstico"]
[]
[null,"[Guía] Atención Integral en Seguridad y Salud en el Trabajo 2015 – Desorden músculo esquelético de miembro superior"]
[]
[null,"[Guía] Atención Integral en Seguridad y Salud en el Trabajo 2015 – Dolor lumbar inespecífico y enfermedad discal de origen ocupacional"]
[]
[null,"[Carta] Carta de Gerencia"]
[]
[null,"[Guía] Lista de chequeo de revelaciones: NIC 11 – Contratos de Construcción"]
[]
[null,"[Carta] Modelo: Aceptación de renuncia"]
[]
[null,"[Dictamen] Modelo de certificación para acreditar que la empresa se encuentra al día en pagos de parafiscales y Seguridad Social"]
[]
[null,"[Guía] Lista de chequeo de revelaciones: NIC 10 – Hechos ocurridos después del período sobre el que se informa"]
[]
[null,"[Guía] Acuerdos sobre Promoción y Protección Recíproca de Inversiones"]
[]
[null,"[Guía] Diferencias existentes entre los distintos tipos societarios"]
[]
[null,"[Carta] Modelo de Circularización Proveedores"]
[]
[null,"[Guía] Revelaciones exigidas por la NIC 8 – Políticas Contables, Cambios en las Estimaciones Contables y Errores"]
[]
[null,"[Guía] Convenios para evitar la doble tributación de las Empresas de Navegación"]
[]
[null,"[Carta] De manifestaciones de la dirección al auditor, en una revisión de información financiera intermedia"]
[]
[null,"[Guía] Revelaciones exigidas por la NIC 7: Estado de Flujos de Efectivo"]
[]
[null,"[Contrato] Contrato de arrendamiento vivienda urbana"]
[]
[null,"[Guía] Revelaciones exigidas por la NIC 2: lista de chequeo"]
[]
[null,"[Guía] Obligaciones tributarias con vencimiento en septiembre del 2015"]
[]
[null,"[Carta] Modelo de Circularización Cartera"]
[]
[null,"[Formato] Medición de cuentas por cobrar sin intereses"]
[]
[null,"[Guía] Tabla de tarifas del IMAS para trabajadores por cuenta propia"]
[]
[null,"[Contrato] Promesa de Compraventa de Inmueble"]
[]
[null,"[Contrato] Contrato de mercancías en consignación"]
[]
[null,"[Formato] Dictamen revisor fiscal con salvedades según Decreto 302 del 2015"]
[]
[null,"[Guía] Resumen de normas tributarias recopiladas en los decretos únicos reglamentarios de mayo del 2015"]
[]
[null,"Contrato de trabajo de servicio doméstico al día"]
[]
[null,"[Formato] Dictamen Revisor Fiscal con abstención según Decreto 302 del 2015"]
[]
[null,"[Certificado] Modelo Declaración Grupo Empresarial o Situación de Control (personas jurídicas)"]
[]
[null,"[Contrato] Contrato de Suministro"]
[]
[null,"[Dictamen] Modelo dictamen Revisor Fiscal, Decreto 302"]
[]
[null,"[Guía] Modificaciones realizadas por la Ley 1739 del 2014 en materia de declaración de renta"]
[]
[null,"[Contrato] Cesión de Derechos Patrimoniales de Autor"]
[]
[null,"[Guía] Presentación y revelación de cuentas por cobrar: Modelo Política Contable"]
[]
[null,"[Guía] Normatividad a tener en cuenta en la preparación de la declaración de renta personas naturales año gravable 2014"]
[]
[null,"[Liquidador] Modelo liquidación trabajadores periodos inferiores a 30 días"]
[]
[null,"[Contrato] Acta compromisoria para delegación de Tribunal de Arbitramento"]
[]
[null,"[Formato] Amortización de contrato de leasing"]
[]
[null,"[Guía] Tablas para definir el impuesto de renta de «empleados» por el sistema ordinario, IMAN e IMAS"]
[]
[null,"[Acta] Constitución de COPASST"]
[]
[null,"[Contrato] Contrato de Prestación de Servicios para Mensajería Externa"]
[]
[null,"Formularios 110 y 140 declaración Renta y CREE personas jurídicas fracción año gravable 2015 – versión básica"]
[]
[null,"[Guía] Requisitos para acceder al beneficio tributario por la generación de nuevos puestos de trabajo"]
[]
[null,"[Contrato] Contrato de arrendamiento de local comercial"]
[]
[null,"[Guía] Propuesta aplicación NIIF en propiedad horizontal"]
[]
[null,"[Guía] Declaración renta personas naturales: requisitos para exoneración en el año gravable 2014"]
[]
[null,"[Acta] Derecho de Petición reliquidación de pensión"]
[]
[null,"[Guía] Declaración de renta personas naturales 2014: Documentos necesarios para elaborarla"]
[]
[null,"[Guía] Modelo Política Contable de presentación y revelación de cuentas por cobrar"]
[]
[null,"[Guía] Guía para determinar si una persona natural es residente para efectos fiscales"]
[]
[null,"[Contrato] Contrato de Prestación de Servicios"]
[]
[null,"[Contrato] Contrato de Obra Civil"]
[]
[null,"[Guía] Modelo Política Contable de instrumentos financieros: cuentas por cobrar"]
[]
[null,"Formularios 110 y 240 con anexos y formato 1732 para declaración de renta de persona natural comerciante año gravable 2014"]
[]
[null,"Formularios 210 y 230 con anexos de persona natural para declaración de renta año gravable 2014"]
[]
[null,"[Contrato] Cuentas en Participación"]
[]
[null,"[Contrato] Contrato de Unión Temporal"]
[]
[null,"[Guía] Modelo de política contable de medición posterior de cuentas por cobrar"]
[]
[null,"Formulario 210 para Declaración de Renta 2014 de Personas Naturales. Versión básica"]
[]
[null,"Consecuencias contables y tributarias de las personas naturales y/o sucesiones ilíquidas obligadas o no a llevar contabilidad por el año 2014"]
[]
[null,"[Contrato] Arrendamiento de Local Comercial"]
[]
[null,"[Contrato] Contrato de Depósito"]
[]
[null,"[Guía] Revelaciones exigidas por la NIC 1: lista de chequeoFO"]
[]
[null,"[Liquidador] Modelo para definir porcentaje fijo de retención en la fuente sobre salarios en junio del 2015 (procedimiento 2)"]
[]
[null,"[Liquidador] Modelo básico para la elaboración de la nómina para pago de salarios"]
[]
[null,"[Contrato] Contrato de Prestación de Servicios de Administración de Propiedad Horizontal"]
[]
[null,"[Liquidador] Bonos: modelo matemático para valorarlos"]
[]
[null,"Formulario 110 adaptado para Declaración de Renta 2014 de Personas Naturales. Versión básica"]
[]
[null,"[Guía] Cuadro resumen de las características básicas de cada tipo de persona natural"]
[]
[null,"[Acta] Derecho de Petición requiriendo visita para inspección de sanidad"]
[]
[null,"[Formato] Modelo de Contrato de Transporte Terrestre de Carga"]
[]
[null,"[Guía] Plantilla elaboración Estados Financieros en NIIF para Supersociedades con XBRL EXPRESS"]
[]
[null,"​ Modelo para proyectar efectos 2014 del IMAN y el IMAS en el impuesto de renta de los empleados"]
[]
[null,"[Guía] Requisitos para acceder a la exención del impuesto de renta en San Andrés, Providencia y Santa Catalina"]
[]
[null,"[Guía] Presentación de solicitud para registro de Contratos de Importación de Tecnología"]
[]
[null,"Modelo para proyectar efectos 2014 del IMAS en la declaración de renta de los trabajadores por cuenta propia"]
[]
[null,"[Guía] Clasificación tributaria por el año gravable 2014 de las personas naturales y sucesiones ilíquidas frente al impuesto de renta y ganancia ocasional"]
[]
[null,"[Contrato] Oferta de Seriedad"]
[]
[null,"[Formato] Modelo de Presupuesto y cálculo de la cuota de administración de una propiedad horizontal"]
[]
[null,"[Certificación] Modelo de Certificado de Retenciones en la Fuente año gravable 2014"]
[]
[null,"[Acta] Derecho de Petición informando apertura de establecimiento de comercio"]
[]
[null,"[Formato] Modelo de Contrato de Comodato Precario"]
[]
[null,"[Formato] Superfinanciera: valoración de Instrumentos Financieros Derivados Básicos"]
[]
[null,"[Formato] Modelo de Política general contable"]
[]
[null,"[Guía] Categorías de informantes de exógena por el año gravable 2014 y los formatos que deben usar"]
[]
[null,"[Contrato] Convenio de colaboración programa empresarial"]
[]
[null,"[Contrato] Modelo de Contrato de Maquila"]
[]
[null,"[Liquidador] Proyección de posibles resultados del «CREE menos sus autorretenciones» y de la «Sobretasa al CREE más y menos sus anticipos»"]
[]
[null,"[Plantillas] Reportes de Información exógena Tributaria a la DIAN año gravable 2014"]
[]
[null,"[Formato] Control Interno en la entrada de Inventarios"]
[]
[null,"[Guía] Casos de la depuración del Impuesto de Renta en las entidades del régimen tributario especial"]
[]
[null,"[Guía] Comparativo de partidas con que se depura el Impuesto de Renta y Complementarios y el CREE"]
[]
[null,"Liquidación del Impuesto de Renta y CREE año gravable 2014 para pequeñas empresas de la Ley 1429 de 2010"]
[]
[null,"[Certificado] Modelo del certificado anual a socios y/o accionistas por el año 2014"]
[]
[null,"[Formato] Medición de pasivos financieros a costo amortizado"]
[]
[null,"[Acta] Notificación del arrendatario de no renovación del contrato"]
[]
[null,"Formularios 110 y 140 declaración Renta y CREE personas jurídicas año gravable 2014 – versión básica"]
[]
[null,"Formularios 110 y 140 con anexos y formato 1732 para personas jurídicas año gravable 2014"]
[]
[null,"[Contrato] Modelo Contrato de Mandato"]
[]
[null,"[Formato] Tabla amortización de CDT"]
[]
[null,"[Contrato] Contrato de Fianza"]
[]
[null,"[Contrato] Contrato de Confidencialidad"]
[]
[null,"[Contrato] Fideicomiso Civil"]
[]
[null,"[Calendario] Calendario tributario automatizado para el 2015"]
[]
[null,"[Formato] Análisis de la situación financiera a largo plazo"]
[]
[null,"[Guía] Modelo para obligados a presentar las declaraciones tributarias de forma virtual"]
[]
[null,"[Guía] Plantilla para elaborar Estado de Situación Financiera de Apertura para reportar a Supersociedades"]
[]
[null,"[Liquidador] Cálculo costo renovación año 2015 de la Matrícula Mercantil y de los establecimientos de comercio"]
[]
[null,"[Certificación] Persona natural no obligada a llevar contabilidad para acreditar los indicadores de capacidad financiera para proponentes"]
[]
[null,"[Guía] Preguntas para clasificación de empresas en grupos de convergencia"]
[]
[null,"[Guía] Plantilla para elaborar Formulario Empresarial por el año 2014 a Supersociedades"]
[]
[null,"[Guía] Revisión Autorretención del CREE"]
[]
[null,"[Acta] Modelo de certificación para acreditar el pago de aportes a la seguridad social y aportes parafiscales de proponentes"]
[]
[null,"[Guía] Orden de Compra"]
[]
[null,"[Formato] Cuestionario de Auditoría para Área de Nómina"]
[]
[null,"[Guía] Indice del Marco Técnico Normativo de las Normas de Aseguramiento de la Información"]
[]
[null,"[Formato] Plan de Implementación NIIF para empresas del Grupo 2"]
[]
[null,"[Guía] Cumplimiento oportuno de obligaciones tributarias"]
[]
[null,"[Reclamación] Demanda para iniciar Proceso Ordinario Laboral"]
[]
[null,"[Formato] Cuestionario de Auditoría para Área de Tesorería"]
[]
[null,"[Formato] Informe de Gestión año 2014"]
[]
[null,"[Formato] Documento Constitución Comité NIIF"]
[]
[null,"[Guía] Informes Superintendencia de Sociedades"]
[]
[null,"[Certificación] Formulario 220 certificación pagos y retenciones a “empleados” por el año gravable 2014"]
[]
[null,"[Contrato] Solicitud de transacción ante Juez Laboral"]
[]
[null,"[Guía] Planeación obligaciones tributarias 2015"]
[]
[null,"[Acta] Estructuración de la Auditoría"]
[]
[null,"[Formato] Política contable de Presentación de Estados Financieros"]
[]
[null,"[Guía] Cancelación cuenta bancaria"]
[]
[null,"[Guía] Conciliación entre resultado contable y resultados fiscales 2014"]
[]
[null,"[Formato] Anexo declaración de renta o balance"]
[]
[null,"[Liquidador] Retención en la fuente con procedimiento 1 a asalariados y demás empleados durante el 2015"]
[]
[null,"[Contrato] Encargo fiduciario con destinación específica"]
[]
[null,"[Formato] Concordancias entre las NIIF y los PCGA"]
[]
[null,"[Formato] Arqueo caja menor"]
[]
[null,"[Guía] Modelo cesión de acciones"]
[]
[null,"[Guía] Factura de Venta"]
[]
[null,"[Dictamen] Modelo de dictamen de entidades del Grupo 1"]
[]
[null,"[Guía] Información a tener en cuenta para realizar el cierre contable 2014"]
[]
[null,"[Guía] Parámetros claves en la elaboración de declaraciones tributarias durante el año 2015"]
[]
[null,"[Calendario] Calendario Tributario 2015"]
[]
[null,"[Acta] Carta de compromiso de auditoría"]
[]
[null,"[Guía] Indicadores básicos 2015"]
[]
[null,"[Guía] Información laboral a tener en cuenta a partir del 1° de enero de 2015"]
[]
[null,"Guía de Referencia 2015"]
[]
[null,"6 Liquidadores a tener en cuenta para este año 2015"]
[]
[null,"[Guía] Retención en la fuente a título de los impuestos nacionales durante el 2015"]
[]
[null,"[Guía] Cuadro temático con los cambios introducidos por la Reforma Tributaria Ley 1739 de 2014"]
[]
[null,"[Liquidador] Modelo para definir porcentaje fijo retención sobre salarios en diciembre de 2014 (procedimiento 2)"]
[]
[null,"[Guía] Plantilla para clasificar una entidad en un Grupo de aplicación de las NIIF en Colombia"]
[]
[null,"[Guía] Estructura del contenido de la Resolución DIAN 000220 de oct. 31 de 2014"]
[]
[null,"[Liquidador] Liquidador contrato de trabajo a término fijo – Héctor Fernando Muñoz E."]
[]
[null,"[Guía] Manejo del IVA y retención por renta de las empresas que manejan A.I.U."]
[]
[null,"[Guía] Casos de aplicación del A.I.U."]
[]
[null,"[Guía] Códigos de responsabilidades tributarias que le pueden figurar a un contribuyente en su RUT"]
[]
[null,"[Certificaciones] Modelo para certificación de experiencia técnico contable en trámite de solicitud tarjeta profesional"]
[]
[null,"[Certificaciones] Modelo Certificación de Contador para solicitar autorización reducción retención de IVA"]
[]
[null,"[Contratos] Acuerdo confidencialidad para miembros del Comité de Convivencia"]
[]
[null,"[Guía] Cronograma para aplicación de Estándares NIIF"]
[]
[null,"[Liquidador] Formulario 210 para Declaración de Renta 2013 de Personas Naturales. Versión básica"]
[]
[null,"[Liquidador avanzado] Diligenciamiento de formularios 210 y 230 con anexos para la declaración de renta 2013 de una persona natural no obligada a llevar contabilidad"]
[]
[null,"[Certificación] Modelo certificación de contador para actualizar el RUT por cese de actividades gravadas con IVA"]
[]
[null,"[Liquidador] Cálculo de intereses presuntivos sobre préstamos entre sociedades y socios durante 2014"]
[]
[null,"[Liquidador] Modelo para definir porcentaje fijo de retención en la fuente sobre salarios en Junio de 2014 (procedimiento 2)"]
[]
[null,"[Guía] Plantilla para elaborar el ESFA individual a enero 1 de 2014 en entidades del grupo 1"]
[]
[null,"[Liquidador] Proyección de efectos del IMAS en la declaración de renta de los trabajadores por cuenta propia"]
[]
[null,"[Liquidador] Proyección de efectos del IMAN y el IMAS en el impuesto de renta de los empleados"]
[]
[null,"[Liquidador] Plantilla para cálculo automático impuesto IMAS de trabajadores por cuenta propia"]
[]
[null,"[Liquidador Avanzado] Diligenciamiento de formularios 110 y 240 con anexos y formato 1732 para la declaración de renta de una persona natural comerciante año gravable 2013"]
[]
[null,"[Liquidador] Formulario 110 adaptado para Declaración de Renta 2013 Personas Naturales. Versión básica"]
[]
[null,"[Guía] Clasificación de las personas naturales frente al impuesto de renta luego de la Ley 1607"]
[]
[null,"[Guía] Modelo básico con la estructura del nuevo formato 1001 para el reporte de exógena tributaria 2013"]
[]
[null,"[Guía] Plantilla para elaborar Informe de Prácticas Empresariales por el 2013"]
[]
[null,"[Certificado] Modelo del certificado anual a socios y/o accionistas por el año 2013"]
[]
[null,"[Liquidadores] Reportes de Información exógena Tributaria a la DIAN año gravable 2013"]
[]
[null,"[Guía] Clasificación general de personas jurídicas en relación con el impuesto de renta y complementarios y del CREE, por el año gravable 2013"]
[]
[null,"[Liquidador] Cálculo costo renovación año 2014 de la matrícula mercantil y los establecimientos de comercio"]
[]
[null,"[Liquidador] Formulario 110 y 140 Declaración renta y CREE de Personas jurídicas año gravable 2013. Plantilla básica"]
[]
[null,"[Guía] Resumen de las categorías de informantes de Exógena por el año gravable 2013 y los formatos que deben usar"]
[]
[null,"[Certificaciones] Certificado anual exigido a los contratistas que cobren rentas de trabajo y depuración de la base para efectos de retención en la fuente"]
[]
[null,"Formularios 110 y 140 con anexos y formato 1732 año gravable 2013"]
[]
[null,"[Liquidador] Depuración impuesto renta año gravable 2013 para las copropiedades comerciales y mixtas"]
[]
[null,"[Guía] Cierre contable 2013. Lista de chequeo para verificación de información"]
[]
[null,"[Guía] Llegó el momento de utilizar las tarifas de honorarios profesionales y remuneración para Contadores Públicos"]
[]
[null,"[Guías] Solicitudes de devolución y/o compensación por saldos a favor generados en declaraciones de renta y ventas"]
[]
[null,"[Certificación] Formulario 220 certificación pagos y retenciones a «empleados» por el año gravable 2013"]
[]
[null,"[Liquidación] Conciliación entre la renta contable y la renta fiscal"]
[]
[null,"[Liquidador] Retención en la fuente con procedimiento 1 a asalariados y demás «empleados» durante el 2014"]
[]
[null,"[Calendario] Calendario tributario automatizado para el 2014"]
[]
[null,"[Guía] Requisitos para pertenecer al Régimen Simplificado en el 2014"]
[]
[null,"[Guía] Cambios a los textos de los Decretos 2706 y 2784 de 2012 efectuados con Decretos 3019 y 3024 de 2013"]
[]
[null,"[Guía] Retención en la fuente a título de los impuestos nacionales, año fiscal 2014"]
[]
[null,"[Calendario] Calendario Tributario 2014"]
[]
[null,"[Guía] Información laboral a tener en cuenta a partir del 1° de enero de 2014"]
[]
[null,"[Formularios] Formato Único Nacional de Autorización de Trabajo para niños, niñas o adolescentes (NNA)"]
[]
[null,"[Liquidador] Modelo para estimar reducción de aportes parafiscales y EPS según la Ley 1607"]
[]
[null,"[Guía] ABC de la afiliación a Riesgos Laborales de Independientes. Decreto 723 de 2013"]
[]
[null,"[Formato] Modelo acción de tutela para licencia de maternidad con parto prematuro"]
[]
[null,"[Liquidador] Cálculo del punto de equilibrio y simulación de utilidad deseada – Ower Cassetta"]
[]
[null,"[Formato] Reclamación directa (Propuesto por la SIC)"]
[]
[null,"[Formato] Circularización bancaria de información financiera"]
[]
[null,"[Acta] Circular a contratistas por pago de seguridad social"]
[]
[null,"[Autorización] Descuento en salario de libranza"]
[]
[null,"[Autorización] Pagaré y Carta de Instrucción"]
[]
[null,"[Guía] Glosario básico para aplicación de estándares internacionales de información financiera"]
[]
[null,"[Guía] Conoce como esta clasificada su empresa de acuerdo a las NIIF"]
[]
[null,"[Guía] Comunicado para notificar en la DIAN la delegación de la responsabilidad para firmar las declaraciones"]
[]
[null,"[Liquidador] Cálculo valores por salud y pensiones que al independiente se le restarían en el proceso de retención"]
[]
[null,"[Liquidador] Convertir tasa efectiva a nominal – Jhony José Duran"]
[]
[null,"[Guía] Las preguntas más frecuentes sobre la contratación del trabajo doméstico"]
[]
[null,"[Contrato] Contrato de Trabajo modalidad Teletrabajo"]
[]
[null,"[Contrato] Contrato de EXW (Ex – Works)"]
[]
[null,"[Certificado] Donaciones en dinero o en especie para entidades sin ánimo de lucro"]
[]
[null,"[Guía] Cuadro sinóptico sobre quiénes deben actuar como agentes de retención de IVA y con qué tarifas"]
[]
[null,"[Cuadro sinóptico] Diferencias entre Contribuyentes y No Contribuyentes del Impuesto de Renta y Complementarios"]
[]
[null,"[Liquidador] Modelo para cálculo de retención en la fuente a independientes con tabla de la Ley 1527 de 2012"]
[]
[null,"[Guía] Consejos prácticos sobre el nuevo estatuto del consumidor – SuperIndustria y Comercio"]
[]
[null,"[Guía] Cartilla. Mincomercio pública documento unificado sobre NIIF"]
[]
[null,"[Autorización] Para que un tercero solicite en la DIAN los mecanismos de firma digital"]
[]
[null,"[Guía] Indicadores básicos a tener en cuenta al finalizar 2011 e iniciar el 2012"]
[]
[null,"[Liquidador] Anexo a nota contable para actualización de valorizaciones o provisiones sobre activos fijos al cierre del año"]
[]
[null,"[Acta] Acta de constitución y estatutos de Entidad Sin Ánimo de Lucro (fundación, corporación, asociación)"]
[]
[null,"[Acta] Informe en propiedad horizontal, con salvedad – Jesús S. Blanquicett Carmona"]
[]
[null,"[Liquidador] Modelo para definir límite de pagos no salariales y su aporte a seguridad social"]
[]
[null,"[Guía] Cuestionario de control para verificar cumplimiento de requisitos de facturación en papel o por computador"]
[]
[null,"[Liquidador] Cálculo de intereses de mora y su IVA en cuentas por cobrar vencidas"]
[]
[null,"[Acta] Reunión extraordinaria, Junta Directiva autorizando a Representante Legal a suscribir créditos"]
[]
[null,"[Liquidador] Conversión de Tasas de Interés – Edicson Ortiz Dicelis"]
[]
[null,"[Derecho de Petición] Devolución de pagarés o letras pagadas"]
[]
[null,"[Liquidador] Modelo para determinar obligaciones comerciales o fiscales según el patrimonio o los ingresos"]
[]
[null,"[Edicto] Aviso de trabajador fallecido para pago de salarios y prestaciones adeudadas"]
[]
[null,"[Guía] Funciones, Responsabilidades y Conocimientos para aplicar al cargo de Contador General de una empresa"]
[]
[null,"[Liquidador] Liquidador de intereses de mora de obligaciones tributarias – Jose Miguel Barbosa M."]
[]
[null,"[Liquidador] Cálculo de retención a independientes con un único contrato no superior a 300 UVT"]
[]
[null,"[Convocatoria] Citación a Asamblea de Propietarios de Propiedad Horizontal"]
[]
[null,"[Certificado] Comprobante de Pago de los Intereses de Cesantía"]
[]
[null,"[Acta] Modelo de Acción y nota de Cesión"]
[]
[null,"[Contrato] Contrato de Arrendamiento de Vehículo Automotor para Carga o Transporte"]
[]
[null,"[Liquidador] Liquidador contrato de trabajo a término fijo – Fredy Robinson Gil Zea"]
[]
[null,"[Acta] Acta para transformación de Sociedad Comanditaria por Acciones a SAS"]
[]
[null,"[Acta] Modelo Acción de Tutela para reclamar incapacidad o licencia negada según el Decreto 1804 de 1999"]
[]
[null,"[Acta] Acta de Junta para transformar Sociedad en Comandita en SAS"]
[]
[null,"[Contrato] Contrato de Comisión o Corretaje"]
[]
[null,"[Contrato] Minuta de Comodato o Préstamo de uso"]
[]
[null,"[Acta] Minuta compraventa de inmueble con reserva de usufructo"]
[]
[null,"[Acta] Asamblea Extraordinaria de Accionistas para la entrega de Acciones a Acreedores"]
[]
[null,"[Guía] Cuadro comparativo de modificaciones hechas por la Ley 1328/09 al Estatuto Orgánico Financiero"]
[]
[null,"[Acta] Reforma al Componente Social de una Sociedad Limitada – (Cesión de Cuotas)"]
[]
[null,"[Contrato] Contrato de Suministro de Alimentos (Outsourcing de Casino)"]
[]
[null,"[Liquidador] Liquidador de jornadas ordinarias y extraordinarias de trabajo – Juan M. Beltrán V."]
[]
[null,"[Acta] Modelo de Minuta para la Constitución de una SAS. Sociedad por Acciones Simplificada – Francisco Reyes"]
[]
[null,"[Liquidador] Herramienta calculadora de tarifas en la profesión de Contador Público"]
[]
[null,"[Contrato] Contrato de Prestación de Servicios para la Organización Contable"]
[]
[null,"[Guía] Listado de los códigos para identificar en la PILA a las distintas administradoras de la seguridad social"]
[]
[null,"[Contrato] Contrato de Fabricación de Productos"]
[]
[null,"[Acta] Segunda Convocatoria a Asamblea General Ordinaria de Socios"]
[]
[null,"[Acta] Cesión y Venta de Cuotas entre los mismos Socios"]
[]
[null,"Aviso a Empleados para la escogencia de Fondo de Cesantías"]
[]
[null,"[Guía] Resumen de Parámetros Clave para la elaboración de Declaraciones Tributarias durante el 2009"]
[]
[null,"[Contrato] Modelo para la elaboración de un Contrato de Suministro"]
[]
[null,"[Guía] Diferencias entre Contribuyentes y No Contribuyentes del Impuesto sobre la Renta y Complementarios"]
[]
[null,"[Liquidador] Modelo para elaboración del Kardex de Mercancías con Método de Valuación Promedio Ponderado"]
[]
[null,"[Acta] Modelo Acción de Tutela para reclamar incapacidades"]
[]
[null,"[Acta] Acta de Asamblea Ordinaria de Socios o Accionistas"]
[]
[null,"[Contrato] Modelo de Contrato de Compraventa de Carro o Moto"]
[]
[null,"[Guía] Cuestionario para preparar la DR 2007 de Personas Naturales"]
[]
[null,"[Acta] Modelo de dictamen sin salvedades que la Revisoría Fiscal expediría para el cierre del periodo 2007"]
[]
[null,"[Guía] Clasificación actual de los Bienes Corporales Muebles en relación con el Impuesto sobre las Ventas"]
[]
[null,"[Acta] Modelo para la Elaboración de un Reglamento Interno de Trabajo"]
[]
[null,"[Liquidador] Modelo de Consolidación accionaria exigida en el artículo 130 del decreto 2649 de 1993"]
[]
[null,"[Guía] Información necesaria para efectos contables, laborales y tributarios tanto en el cierre contable como para la Declaración de Renta de año gravables 2006-2007"]
[]
[null,"[Liquidador] Modelo para la elaboración del Estado de Cambios en el Patrimonio"]
[]
[null,"[Liquidador] Modelo para elaborar un Resumen de Ajustes propuestos a los Estados Financieros en el desarrollo de una auditoría externa o Revisoría Fiscal"]

{"sheet":"Instructivo","index":11,"n_rows":0,"n_cols":0,"rows_kept":0,"hidden":true}

{"sheet":"Tablas","index":12,"n_rows":68,"n_cols":12,"rows_kept":68,"hidden":true,"merged":[[1,8,1,9],[15,2,15,3],[15,8,15,11],[16,8,16,9],[16,10,16,11]]}
[]
[{"$nulls":8},"Periodo"]
[{"$nulls":8},"Enero","01"]
[{"$nulls":8},"Febrero","02"]
[{"$nulls":8},"Marzo","03"]
[{"$nulls":8},"Abril","04"]
[{"$nulls":8},"Mayo","05"]
[{"$nulls":8},"Junio","06"]
[{"$nulls":8},"Julio","07"]
[{"$nulls":8},"Agosto","08"]
[{"$nulls":8},"Septiembre","09"]
[{"$nulls":8},"Octubre",10]
[null,null,"Persona natural",{"$nulls":3},"Código",null,"Noviembre",11]
[null,null,"Persona jurídica o sociedad de hecho",{"$nulls":3},1,null,"Diciembre",12]
[{"$nulls":6},2]
[null,null,"Cód Dirección Seccional",{"$nulls":3},3,null,"Cód representación"]
[null,null,"Nivel Central","00",null,null,4,null,"Persona natural",null,"Persona jurídica o sociedad de hecho"]
[null,null,"Dirección Seccional de Impuestos y Aduanas de Armenia","01",{"$nulls":4}," Administrador judicial","01"," Administrador judicial","01"]
[null,null,"Dirección Seccional de Impuestos de Barranquilla","02",null,null,"Código C o RF",null," Administrador privado","02"," Administrador privado","02"]
[null,null,"Dirección Seccional de Aduanas de Bogotá","03",null,null,1,null," Agente exclusivo de negocios en colombia","03"," Agente exclusivo de negocios en colombia","03"]
[null,null,"Dirección Seccional de Impuestos y Aduanas de Bucaramanga","04",null,null,2,null," Agente oficioso","04"," Agente oficioso","04"]
[null,null,"Dirección Seccional de Impuestos de Cali","05",{"$nulls":4}," Albacea","05"," Apoderado especial","06"]
[null,null,"Dirección Seccional de Impuestos de Cartagena","06",null,null,"Salvedad",null," Apoderado especial","06"," Apoderado general","07"]
[null,null,"Dirección Seccional de Impuestos de Cúcuta","07",null,null,"Sí",null," Apoderado general","07"," Comunero","09"]
[null,null,"Dirección Seccional de Impuestos y Aduanas de Girardot","08",null,null,"No",null," Asignatario","08"," Factor","12"]
[null,null,"Dirección Seccional de Impuestos y Aduanas de Ibagué","09",{"$nulls":4}," Comunero","09"," Funcionario delegado para cumplir deberes formales","13"]
[null,null,"Dirección Seccional de Impuestos y Aduanas de Manizales",10,{"$nulls":4}," Curador","10"," Liquidador","15"]
[null,null,"Dirección Seccional de Impuestos de Medellín",11,{"$nulls":4}," Donatario","11"," Mandatario","16"]
[null,null,"Dirección Seccional de Impuestos y Aduanas de Montería",12,{"$nulls":4}," Factor","12"," Representante legal principal","18"]
[null,null,"Dirección Seccional de Impuestos y Aduanas de Neiva",13,{"$nulls":4}," Heredero con administración de bienes","14"," Representante legal suplente","19"]
[null,null,"Dirección Seccional de Impuestos y Aduanas de Pasto",14,{"$nulls":4}," Liquidador","15"," Síndico","20"]
[null,null,"Dirección Seccional de Impuestos y Aduanas de Palmira",15,{"$nulls":4}," Mandatario","16","Representante aduanero",22]
[null,null,"Dirección Seccional de Impuestos y Aduanas de Pereira",16,{"$nulls":4}," Padre","17","Liquidador suplente",23]
[null,null,"Dirección Seccional de Impuestos y Aduanas de Popayán",17,{"$nulls":4}," Tutor","21","Depositario Provisional",24]
[null,null,"Dirección Seccional de Impuestos y Aduanas de Quibdó",18,{"$nulls":4},"Representante aduanero",22,"Agente Interventor",25]
[null,null,"Dirección Seccional de Impuestos y Aduanas de Santa Marta",19,{"$nulls":4},"Liquidador suplente",23,"Agente de Aduanas",26]
[null,null,"Dirección Seccional de Impuestos y Aduanas de Tunja",20,{"$nulls":4},"Depositario Provisional",24,"Funcionario delegado para cumplir funciones OEA",27]
[null,null,"Dirección Seccional de Impuestos y Aduanas de Tuluá",21,{"$nulls":4},"Agente Interventor",25,"Representante legal empresa receptora inversión extranjera",30]
[null,null,"Dirección Seccional de Impuestos y Aduanas de Villavicencio",22,{"$nulls":4},"Heredero designado",28]
[null,null,"Dirección Seccional de Impuestos y Aduanas de Sincelejo",23,{"$nulls":4},"Persona Natural sin residencia en Colombia con EP",29]
[null,null,"Dirección Seccional de Impuestos y Aduanas de Valledupar",24,{"$nulls":4},"Representante legal empresa receptora inversión extranjera",30]
[null,null,"Dirección Seccional de Impuestos y Aduanas de Riohacha",25]
[null,null,"Dirección Seccional de Impuestos y Aduanas de Sogamoso",26]
[null,null,"Dirección Seccional de Impuestos y Aduanas de San Andrés",27]
[null,null,"Dirección Seccional de Impuestos y Aduanas de Florencia",28]
[null,null,"Dirección Seccional de Impuestos y Aduanas de Barrancabermeja",29]
[null,null,"Dirección Seccional de Impuestos de Grandes Contribuyentes",31]
[null,null,"Dirección Seccional de Impuestos de Bogotá",32]
[null,null,"Dirección Seccional de Impuestos y Aduanas de Arauca",34]
[null,null,"Dirección Seccional de Impuestos y Aduanas de Buenaventura",35]
[null,null,"Dirección Seccional Delegada de Impuestos y Aduanas de Cartago",36]
[null,null,"Dirección Seccional de Impuestos y Aduanas de Ipiales",37]
[null,null,"Dirección Seccional de Impuestos y Aduanas de Leticia",38]
[null,null,"Dirección Seccional de Impuestos y Aduanas de Maicao",39]
[null,null,"Dirección Seccional Delegada de Impuestos y Aduanas de Tumaco",40]
[null,null,"Dirección Seccional de Impuestos y Aduanas de Urabá",41]
[null,null,"Dirección Seccional Delegada de Impuestos y Aduanas de Puerto Carreño",42]
[null,null,"Dirección Seccional Delegada de Impuestos y Aduanas de Inírida",43]
[null,null,"Dirección Seccional de Impuestos y Aduanas de Yopal",44]
[null,null,"Dirección Seccional Delegada de Impuestos y Aduanas Mitú",45]
[null,null,"Dirección Seccional Delegada de Impuestos y Aduanas de Puerto Asís",46]
[null,null,"Dirección Seccional de Aduanas de Cartagena",48]
[null,null,"Dirección Seccional Delegada de Impuestos y Aduanas de San José de Guaviare",78]
[null,null,"Dirección Seccional Delegada de Impuestos y Aduanas de Pamplona",86]
[null,null,"Dirección Seccional de Aduanas de Barranquilla",87]
[null,null,"Dirección Seccional de Aduanas de Cali",88]
[null,null,"Dirección Seccional de Aduanas de Cúcuta",89]
[null,null,"Dirección Seccional de Aduanas de Medellín",90]

{"sheet":"1","index":13,"n_rows":22,"n_cols":4,"rows_kept":22,"hidden":true,"merged":[[5,0,8,3],[26,0,26,8],[27,0,27,8]]}
[]
[]
[]
[]
[]
["Material relacionado"]
[]
[]
[]
["Concepto","Cuantía en UVT","Cuantía en pesos","Tarifa"]
["Ingresos originados en una relación laboral o legal y reglamentaria (personas naturales declarantes o no de renta).","> 95 UVT","> 3.449.000","Ver tabla del artículo 383 del ET."]
["Honorarios y compensación de servicios personales por personas naturales que manifiestan que no han subcontratado dos o más personas.","> 95 UVT","> 3.449.000","Ver tabla del artículo 383 del ET."]
["Servicios de aseo y vigilancia (la base será el 100 % del AIU, siempre que sea mayor o igual a 4 UVT).","≥ 4 UVT","≥ 145.000",{"v":0.02,"d":"2.00%"}]
["Servicios de hoteles, restaurantes y hospedajes para obligados a declarar renta.","≥ 4","≥ 145.000",{"v":0.035,"d":"3.50%"}]
["Servicios de transporte nacional de carga.","≥ 4 UVT","≥ 145.000",{"v":0.01,"d":"1.00%"}]
["Servicios de transporte terrestre nacional de pasajeros.","≥ 27","≥ 980.000",{"v":0.035,"d":"3.50%"}]
["Servicio de transporte aéreo y marítimo de pasajeros.","≥ 4 UVT","≥ 145.000",{"v":0.01,"d":"1.00%"}]
["Servicios en general cuando el beneficiario del pago o abono es persona jurídica, asimilada o persona natural obligada a declarar renta.","≥ 4 UVT","≥ 145.000",{"v":0.04,"d":"4.00%"}]
["Servicios en general cuando el beneficiario del pago o abono es persona natural no obligada a declarar renta.","≥ 4 UVT","≥ 145.000","4% O 6%"]
["Servicios temporales de empleo (la base será el 100 % del AIU, siempre que sea mayor o igual a 4 UVT).","≥ 4 UVT","≥ 145.000",{"v":0.01,"d":"1.00%"}]
["Servicios integrales de salud prestados por una IPS.","≥ 4 UVT","≥ 145.000",{"v":0.02,"d":"2.00%"}]
["Servicios de licenciamiento y derechos de uso de software a obligados a declarar renta.","No aplica","> 0",{"v":0.035,"d":"3.50%"}]

{"sheet":"2","index":14,"n_rows":23,"n_cols":4,"rows_kept":23,"hidden":true,"merged":[[5,0,8,3],[26,0,26,8],[27,0,27,8]]}
[]
[]
[]
[]
[]
["Material relacionado"]
[]
[]
[]
["Contenido","Cuantía en UVT","Cuantía en pesos","Tarifa"]
["Compras en general para obligados a declarar renta.","≥ 27 UVT","≥ 980.000",{"v":0.025,"d":"2.50%"}]
["Compras en general para no obligados a declarar renta.","≥ 27 UVT","≥ 980.000",{"v":0.035,"d":"3.50%"}]
["Compra de café pergamino o cereza.","> 160 UVT","> 5.809.000",{"v":0.005,"d":"0.50%"}]
["Compras con tarjetas débito o crédito.","No aplica","> 0",{"v":0.015,"d":"1.50%"}]
["Compra de productos agrícolas o pecuarios sin procesamiento industrial.","> 92 UVT","> 3.340.000",{"v":0.015,"d":"1.50%"}]
["Compra de bienes y productos agrícolas o pecuarios con procesamiento industrial, llevada a cabo por personas jurídicas, sociedades de hecho y personas naturales agentes retenedores (vendedor obligado a declarar).","≥ 27 UVT","≥ 980.000",{"v":0.025,"d":"2.50%"}]
["Compra de bienes y productos agrícolas o pecuarios con procesamiento industrial, llevada a cabo por personas jurídicas, sociedades de hecho y personas naturales agentes retenedores (vendedor no obligado a declarar).","≥ 27 UVT","≥ 980.000",{"v":0.035,"d":"3.50%"}]
["Adquisición de bienes raíces para uso de vivienda de habitación por las primeras 20.000 UVT.","Hasta 20.000 UVT","≤ 726.160.000",{"v":0.01,"d":"1.00%"}]
["Adquisición de bienes raíces para uso de vivienda de habitación, cuando exceda las 20.000 UVT (al excedente se le aplicará la tarifa aquí señalada).","Más de 20.000 UVT","> 726.160.000",{"v":0.025,"d":"2.50%"}]
["Adquisición de bienes raíces para uso diferente a vivienda de habitación, si el vendedor es persona jurídica, sociedad de hecho o persona natural declarante, de acuerdo con lo establecido en el artículo 368-2 del ET.","≥ 27 UVT","≥ 980.000",{"v":0.025,"d":"2.50%"}]
["Adquisición de vehículos.","≥ 27 UVT","≥ 980.000",{"v":0.01,"d":"1.00%"}]
["Compra de combustibles derivados del petróleo.","No aplica","> 0",{"v":1E-3,"d":"0.10%"}]
["Enajenación de bienes raíces por parte de personas jurídicas.","≥ 27 UVT","≥ 980.000","1% 0 2,5%"]

{"sheet":"Formulas","index":15,"n_rows":3,"n_cols":1,"rows_kept":3,"hidden":true}
[]
[{"$f":"MOD((VALUE(MID(TEXT(Datos!F12,\"000000000000000\"),15,1))*3+VALUE(MID(TEXT(Datos!F12,\"000000000000000\"),14,1))*7+VALUE(MID(TEXT(Datos!F12,\"000000000000000\"),13,1))*13+VALUE(MID(TEXT(Datos!F12,\"000000000000000\"),12,1))*17+VALUE(MID(TEXT(Datos!F12,\"000000000000000\"),11,1))*19+VALUE(MID(TEXT(Datos!F12,\"000000000000000\"),10,1))*23+VALUE(MID(TEXT(Datos!F12,\"000000000000000\"),9,1))*29+VALUE(MID(TEXT(Datos!F12,\"000000000000000\"),8,1))*37+VALUE(MID(TEXT(Datos!F12,\"000000000000000\"),7,1))*41+VALUE(MID(TEXT(Datos!F12,\"000000000000000\"),6,1))*43+VALUE(MID(TEXT(Datos!F12,\"000000000000000\"),5,1))*47+VALUE(MID(TEXT(Datos!F12,\"000000000000000\"),4,1))*53+VALUE(MID(TEXT(Datos!F12,\"000000000000000\"),3,1))*59+VALUE(MID(TEXT(Datos!F12,\"000000000000000\"),2,1))*67+VALUE(MID(TEXT(Datos!F12,\"000000000000000\"),1,1))*71),11)","v":0}]
[{"$f":"MOD((VALUE(MID(TEXT(Datos!F29,\"000000000000000\"),15,1))*3+VALUE(MID(TEXT(Datos!F29,\"000000000000000\"),14,1))*7+VALUE(MID(TEXT(Datos!F29,\"000000000000000\"),13,1))*13+VALUE(MID(TEXT(Datos!F29,\"000000000000000\"),12,1))*17+VALUE(MID(TEXT(Datos!F29,\"000000000000000\"),11,1))*19+VALUE(MID(TEXT(Datos!F29,\"000000000000000\"),10,1))*23+VALUE(MID(TEXT(Datos!F29,\"000000000000000\"),9,1))*29+VALUE(MID(TEXT(Datos!F29,\"000000000000000\"),8,1))*37+VALUE(MID(TEXT(Datos!F29,\"000000000000000\"),7,1))*41+VALUE(MID(TEXT(Datos!F29,\"000000000000000\"),6,1))*43+VALUE(MID(TEXT(Datos!F29,\"000000000000000\"),5,1))*47+VALUE(MID(TEXT(Datos!F29,\"000000000000000\"),4,1))*53+VALUE(MID(TEXT(Datos!F29,\"000000000000000\"),3,1))*59+VALUE(MID(TEXT(Datos!F29,\"000000000000000\"),2,1))*67+VALUE(MID(TEXT(Datos!F29,\"000000000000000\"),1,1))*71),11)","v":0}]